Document Date,Purchase Order No,Line Item No,Supplier ID,Supplier Name,Pro Class,Pro Class Description,Description of Goods (Purpose of expenditure look up),Service/Department   (SAP Hierarchy Position),Expense Area (cost centre desc), Net Order Value Over 5000.00 (line item value shown here) ,GL Code,Cost Centre/WBS
07/03/2023,ZAV720327,1,35,CBC Computer Systems Ltd,270000,Information Communication Technology  ,Information and Communications Technology,Corporate and Support Services,IT AVA Non - SLA," 7,391.00 ",402001,13001
07/03/2023,ZAV720327,2,35,CBC Computer Systems Ltd,270000,Information Communication Technology  ,Information and Communications Technology,Corporate and Support Services,IT AVA Non - SLA," 1,121.00 ",402001,13001
07/03/2023,ZAV720327,3,35,CBC Computer Systems Ltd,270000,Information Communication Technology  ,Information and Communications Technology,Corporate and Support Services,IT AVA Non - SLA," 1,748.00 ",402001,13001
17/03/2023,ZAV720851,1,12351,Getech,181800,Environmental Services Technical Equipment ,Furniture and Equipment,Corporate and Support Services,IT AVA Non - SLA," 34,547.00 ",400110,13001
17/03/2023,ZAV720851,2,12351,Getech,181800,Environmental Services Technical Equipment ,Furniture and Equipment,Corporate and Support Services,IT AVA Non - SLA," 2,895.00 ",400110,13001
17/03/2023,ZAV720851,3,12351,Getech,181800,Environmental Services Technical Equipment ,Furniture and Equipment,Corporate and Support Services,IT AVA Non - SLA, 965.00 ,400110,13001
17/03/2023,ZAV720851,4,12351,Getech,181800,Environmental Services Technical Equipment ,Furniture and Equipment,Corporate and Support Services,IT AVA Non - SLA," 5,211.00 ",400110,13001
21/03/2023,ZAV720960,1,35,CBC Computer Systems Ltd,270000,Information Communication Technology  ,Information and Communications Technology,Corporate and Support Services,IT AVA Service," 4,872.00 ",402001,11417
21/03/2023,ZAV720960,2,35,CBC Computer Systems Ltd,270000,Information Communication Technology  ,Information and Communications Technology,Corporate and Support Services,IT AVA Service, 680.00 ,402001,11417
31/03/2023,ZAV721535,1,544,Phoenix Software Ltd,181800,Environmental Services Technical Equipment ,Furniture and Equipment,Corporate and Support Services,IT AVA Service," 17,508.75 ",400110,11417
31/03/2023,ZAV721535,2,544,Phoenix Software Ltd,181800,Environmental Services Technical Equipment ,Furniture and Equipment,Corporate and Support Services,IT AVA Service," 3,335.00 ",400110,11417
13/01/2023,ZES717885,1,7753,Netcall Technology Limited,270000,Information Communication Technology  ,Information and Communications Technology,Corporate and Support Services,IT Systems," 148,118.00 ",402002,12503
20/01/2023,ZES718176,1,544,Phoenix Software Ltd,270000,Information Communication Technology  ,Information and Communications Technology,Corporate and Support Services,IT Infrastructure," 5,489.39 ",402010,11324
27/01/2023,ZES718471,1,12243,NCC Group Security Services Lt,270000,Information Communication Technology  ,Information and Communications Technology,Corporate and Support Services,IT Infrastructure," 34,000.00 ",402002,11324
02/02/2023,ZES718816,1,13431,Specops Software Ltd,270000,Information Communication Technology  ,Information and Communications Technology,Corporate and Support Services,IT Infrastructure," 1,183.14 ",402002,11324
02/02/2023,ZES718816,2,13431,Specops Software Ltd,270000,Information Communication Technology  ,Information and Communications Technology,Corporate and Support Services,IT Infrastructure," 4,732.56 ",402002,11324
09/02/2023,ZES719148,1,15529,UBDS IT Consulting Limited,270000,Information Communication Technology  ,Information and Communications Technology,Corporate and Support Services,IT Infrastructure," 23,100.00 ",402004,11324
28/02/2023,ZES719905,1,14487,Bytes Software Services Ltd,270000,Information Communication Technology  ,Information and Communications Technology,Corporate and Support Services,IT Infrastructure," 34,634.97 ",402002,11324
28/02/2023,ZES719905,2,14487,Bytes Software Services Ltd,270000,Information Communication Technology  ,Information and Communications Technology,Corporate and Support Services,IT Infrastructure," 2,141.52 ",402002,11324
28/02/2023,ZES719905,3,14487,Bytes Software Services Ltd,270000,Information Communication Technology  ,Information and Communications Technology,Corporate and Support Services,IT Infrastructure," 59,850.69 ",402002,11324
28/02/2023,ZES719905,4,14487,Bytes Software Services Ltd,270000,Information Communication Technology  ,Information and Communications Technology,Corporate and Support Services,IT Infrastructure," 6,057.98 ",402002,11324
28/02/2023,ZES719905,5,14487,Bytes Software Services Ltd,270000,Information Communication Technology  ,Information and Communications Technology,Corporate and Support Services,IT Infrastructure," 10,000.00 ",402002,11324
01/03/2023,ZES719973,1,7712,Integrity 360,270000,Information Communication Technology  ,Information and Communications Technology,Corporate and Support Services,IT Infrastructure," 6,937.20 ",402002,11324
31/03/2023,ZES721531,1,13608,ElephantWifi,270000,Information Communication Technology  ,Information and Communications Technology,Corporate and Support Services,IT Infrastructure," 8,232.00 ",402001,11324
31/03/2023,ZES721532,1,13608,ElephantWifi,270000,Information Communication Technology  ,Information and Communications Technology,Corporate and Support Services,IT Infrastructure," 9,874.40 ",402001,11324
03/01/2023,ZFC717412,1,1799,Stockport Homes,370000,Utilities   ,Utilities,Services to Place,SPB Operational Est.," 5,580.55 ",200550,11662
03/01/2023,ZFC717413,1,1799,Stockport Homes,390000,"Works - Construction, Repair & Maintenance  ",Repairs and Maintenance,Services to Place,SPB Operational Est.," 7,711.20 ",200124,11662
05/01/2023,ZFC717530,1,10897,Three Sixty SHG Ltd,390000,"Works - Construction, Repair & Maintenance  ",Repairs and Maintenance,Services to Place,SPB Operational Est.," 42,394.60 ",200102,11662
21/02/2023,ZFC719599,1,588,H Jenkinson & Co Ltd,210000,Furniture & Soft Furnishings  ,Furniture and Equipment,#N/A,#N/A," 20,516.76 ",400100,C.11515
10/03/2023,ZFC720536,1,588,H Jenkinson & Co Ltd,210000,Furniture & Soft Furnishings  ,Furniture and Equipment,#N/A,#N/A," 11,359.44 ",400100,C.11515
04/01/2023,ZHS717465,1,2529,TADW Architects,390000,"Works - Construction, Repair & Maintenance  ",Capital Expenditure - Works,#N/A,#N/A," 26,093.60 ",200311,C.11016.002
09/01/2023,ZHS717628,1,14966,CHPK Fire Engineering,391114,"Works - Construction, Repair & Maintenance Buildings Surveys",Capital Expenditure - Fees,#N/A,#N/A," 5,500.00 ",200316,C.11669.020
29/03/2023,ZHS721414,1,14966,CHPK Fire Engineering,390000,"Works - Construction, Repair & Maintenance  ",Capital Expenditure - Works,#N/A,#N/A," 3,850.00 ",200311,C.11669.020
29/03/2023,ZHS721414,2,14966,CHPK Fire Engineering,390000,"Works - Construction, Repair & Maintenance  ",Capital Expenditure - Works,#N/A,#N/A," 12,420.00 ",200311,C.11669.020
29/03/2023,ZHS721414,3,14966,CHPK Fire Engineering,390000,"Works - Construction, Repair & Maintenance  ",Capital Expenditure - Works,#N/A,#N/A," 4,500.00 ",200311,C.11669.020
29/03/2023,ZHS721414,4,14966,CHPK Fire Engineering,390000,"Works - Construction, Repair & Maintenance  ",Capital Expenditure - Works,#N/A,#N/A," 5,850.00 ",200311,C.11669.020
15/02/2023,ZPC719426,1,4369,Pennine Care NHS Trust,310000,Healthcare  ,Third party payments - Public Sector,Services to People,Pendlebury Jigsaw," 3,812.28 ",500402,12709
15/02/2023,ZPC719426,2,4369,Pennine Care NHS Trust,310000,Healthcare  ,Third party payments - Public Sector,Services to People,Pendlebury Jigsaw," 3,495.75 ",500402,12709
08/03/2023,ZPC720377,1,4369,Pennine Care NHS Trust,310000,Healthcare  ,Third party payments - Public Sector,Services to People,Pendlebury Jigsaw," 3,640.08 ",500402,12709
08/03/2023,ZPC720377,2,4369,Pennine Care NHS Trust,310000,Healthcare  ,Third party payments - Public Sector,Services to People,Pendlebury Jigsaw," 3,495.75 ",500402,12709
24/01/2023,ZSA718276,1,2209,FR Monkhouse Ltd,140000,Clothing  ,Clothing Uniforms and Laundry,Corporate and Support Services,Support Funds," 7,368.32 ",400606,13204
10/01/2023,ZSB717666,1,5981,EUROLYNX (TAXIS) LTD,381600,Vehicle Management Hire/Leasing ,Leasing /Transport Hire,Services to People,Highfields PRU," 6,236.78 ",300302,10329
17/01/2023,ZSB718027,1,15074,Bespoke Shelters,181800,Environmental Services Technical Equipment ,Furniture and Equipment,Services to People,Highfields PRU," 6,980.00 ",400110,10329
07/02/2023,ZSB718961,1,5981,EUROLYNX (TAXIS) LTD,381600,Vehicle Management Hire/Leasing ,Leasing /Transport Hire,Services to People,Highfields PRU," 8,791.09 ",300302,10329
06/03/2023,ZSB720221,1,10897,Three Sixty SHG Ltd,390000,"Works - Construction, Repair & Maintenance  ",Repairs and Maintenance,Services to People,Highfields PRU, 297.50 ,200123,10329
06/03/2023,ZSB720221,2,10897,Three Sixty SHG Ltd,390000,"Works - Construction, Repair & Maintenance  ",Repairs and Maintenance,Services to People,Highfields PRU, 148.50 ,200123,10329
06/03/2023,ZSB720221,3,10897,Three Sixty SHG Ltd,390000,"Works - Construction, Repair & Maintenance  ",Repairs and Maintenance,Services to People,Highfields PRU," 12,450.81 ",200123,10329
06/03/2023,ZSB720223,1,5981,EUROLYNX (TAXIS) LTD,381600,Vehicle Management Hire/Leasing ,Leasing /Transport Hire,Services to People,Highfields PRU," 6,825.72 ",300302,10329
14/03/2023,ZSB720665,1,1799,Stockport Homes,390000,"Works - Construction, Repair & Maintenance  ",Repairs and Maintenance,Services to People,Highfields PRU," 12,450.81 ",200123,10329
04/01/2023,ZZC717513,1,12793,Aspire Therapy Services Ltd,999999,Fees and Charges,Fees and Charges,Services to People,RAA - ASF Grant," 6,500.00 ",401035,12968
05/01/2023,ZZC717521,1,15284,Life Skills Hub Limited,261500,Human Resources Training & Conferences ,Fees and Charges,Services to People,GO/HG Client spend," 5,400.00 ",401024,13147
11/01/2023,ZZC717722,1,14867,Let�s Learn to Play ApS,999999,Fees and Charges,Fees and Charges,Services to People,SI - Music Service," 5,771.20 ",401035,10417
16/01/2023,ZZC717937,1,12705,Acorn Therapy,999999,Fees and Charges,Fees and Charges,Services to People,RAA - ASF Grant, 900.00 ,401035,12968
16/01/2023,ZZC717937,2,12705,Acorn Therapy,999999,Fees and Charges,Fees and Charges,Services to People,RAA - ASF Grant," 4,235.00 ",401035,12968
16/01/2023,ZZC717938,1,12706,NEW ROOTS THERAPY NW,999999,Fees and Charges,Fees and Charges,Services to People,RAA - ASF Grant," 2,109.50 ",401035,12968
16/01/2023,ZZC717938,2,12706,NEW ROOTS THERAPY NW,999999,Fees and Charges,Fees and Charges,Services to People,RAA - ASF Grant," 3,093.00 ",401035,12968
19/01/2023,ZZC718130,1,15284,Life Skills Hub Limited,261500,Human Resources Training & Conferences ,Fees and Charges,Services to People,GO/HG Client spend," 8,074.80 ",401024,13147
24/01/2023,ZZC718303,1,14262,Depaul UK,320000,Social Community Care Supplies & Services  ,Care Payments,Services to People,SC - Leaving Care," 10,500.00 ",530330,11501
26/01/2023,ZZC718389,1,12675,Tiptoes Child Therapy Services,150000,Consultancy   ,Professional Fees,Services to People,H&R Client Spend," 6,804.00 ",401020,13143
27/01/2023,ZZC718458,1,8766,ADOPTION MATTERS NORTHWEST,999999,Fees and Charges,Fees and Charges,Services to People,RAA - ASF Grant," 2,834.10 ",401035,12968
27/01/2023,ZZC718458,2,8766,ADOPTION MATTERS NORTHWEST,999999,Fees and Charges,Fees and Charges,Services to People,RAA - ASF Grant," 4,961.50 ",401035,12968
27/01/2023,ZZC718459,1,1543,Barnardos,320000,Social Community Care Supplies & Services  ,Care Payments,Services to People,RAA Adoption Count," 33,871.00 ",530306,12957
30/01/2023,ZZC718554,1,15153,Curiosity Project,999999,Fees and Charges,Fees and Charges,Services to People,RAA - ASF Grant," 2,814.00 ",401035,12968
30/01/2023,ZZC718554,2,15153,Curiosity Project,999999,Fees and Charges,Fees and Charges,Services to People,RAA - ASF Grant," 3,772.50 ",401035,12968
06/02/2023,ZZC718951,1,12646,Child in Mind Ltd,999999,Fees and Charges,Fees and Charges,Services to People,RAA - ASF Grant," 2,157.00 ",401035,12968
06/02/2023,ZZC718951,2,12646,Child in Mind Ltd,999999,Fees and Charges,Fees and Charges,Services to People,RAA - ASF Grant," 3,130.00 ",401035,12968
06/02/2023,ZZC718952,1,15153,Curiosity Project,999999,Fees and Charges,Fees and Charges,Services to People,RAA - ASF Grant," 1,575.00 ",401035,12968
06/02/2023,ZZC718952,2,15153,Curiosity Project,999999,Fees and Charges,Fees and Charges,Services to People,RAA - ASF Grant," 3,812.00 ",401035,12968
08/02/2023,ZZC719111,1,11990,LINKUP TRANSLATION LTD,261100,Human Resources Interpretation & Translation ,Professional Fees,Services to People,Incl - S.I.U - Perip," 3,306.78 ",401023,10307
08/02/2023,ZZC719111,2,11990,LINKUP TRANSLATION LTD,261100,Human Resources Interpretation & Translation ,Professional Fees,Services to People,Incl - S.I.U - Perip," 3,136.06 ",401023,10307
09/02/2023,ZZC719156,1,13770,Heidi Pannell Therapeutic Serv,999999,Fees and Charges,Fees and Charges,Services to People,RAA - ASF Grant," 1,260.00 ",401035,12968
09/02/2023,ZZC719156,2,13770,Heidi Pannell Therapeutic Serv,999999,Fees and Charges,Fees and Charges,Services to People,RAA - ASF Grant," 4,790.00 ",401035,12968
13/02/2023,ZZC719269,1,5555,MANCHESTER DEAF CENTRE LTD,261100,Human Resources Interpretation & Translation ,Professional Fees,Services to People,Incl - S.I.U - Perip," 6,446.02 ",401023,10307
13/02/2023,ZZC719281,1,12675,Tiptoes Child Therapy Services,999999,Fees and Charges,Fees and Charges,Services to People,RAA - ASF Grant," 1,970.00 ",401035,12968
13/02/2023,ZZC719281,2,12675,Tiptoes Child Therapy Services,999999,Fees and Charges,Fees and Charges,Services to People,RAA - ASF Grant," 3,030.00 ",401035,12968
14/02/2023,ZZC719340,1,837,Bolton MBC Corporate Resources,320000,Social Community Care Supplies & Services  ,Care Payments,Services to People,RAA Adoption Count," 27,000.00 ",530306,12957
23/02/2023,ZZC719761,1,12536,CARITAS CARE,320000,Social Community Care Supplies & Services  ,Care Payments,Services to People,RAA Adoption Count," 33,871.00 ",530306,12957
23/02/2023,ZZC719762,1,11190,Social Care Network Solutions,390000,"Works - Construction, Repair & Maintenance  ",Fees and Charges,Services to People,RAA Adoption Count," 40,800.00 ",401017,12957
23/02/2023,ZZC719764,1,15153,Curiosity Project,999999,Fees and Charges,Fees and Charges,Services to People,RAA - ASF Grant," 1,850.00 ",401035,12968
23/02/2023,ZZC719764,2,15153,Curiosity Project,999999,Fees and Charges,Fees and Charges,Services to People,RAA - ASF Grant," 4,100.00 ",401035,12968
23/02/2023,ZZC719765,1,10910,Geraldine Chang,999999,Fees and Charges,Fees and Charges,Services to People,RAA - ASF Grant," 1,046.42 ",401035,12968
23/02/2023,ZZC719765,2,10910,Geraldine Chang,999999,Fees and Charges,Fees and Charges,Services to People,RAA - ASF Grant," 4,740.58 ",401035,12968
01/03/2023,ZZC719985,1,13770,Heidi Pannell Therapeutic Serv,999999,Fees and Charges,Fees and Charges,Services to People,RAA - ASF Grant," 1,120.00 ",401035,12968
01/03/2023,ZZC719985,2,13770,Heidi Pannell Therapeutic Serv,999999,Fees and Charges,Fees and Charges,Services to People,RAA - ASF Grant," 4,650.00 ",401035,12968
02/03/2023,ZZC720024,1,12675,Tiptoes Child Therapy Services,999999,Fees and Charges,Fees and Charges,Services to People,RAA - ASF Grant," 5,000.00 ",401035,12968
02/03/2023,ZZC720026,1,12675,Tiptoes Child Therapy Services,999999,Fees and Charges,Fees and Charges,Services to People,RAA - ASF Grant," 5,000.00 ",401035,12968
07/03/2023,ZZC720311,1,12675,Tiptoes Child Therapy Services,999999,Fees and Charges,Fees and Charges,Services to People,RAA - ASF Grant," 5,000.00 ",401035,12968
08/03/2023,ZZC720408,1,8766,ADOPTION MATTERS NORTHWEST,999999,Fees and Charges,Fees and Charges,Services to People,RAA - ASF Grant," 2,244.10 ",401035,12968
08/03/2023,ZZC720408,2,8766,ADOPTION MATTERS NORTHWEST,999999,Fees and Charges,Fees and Charges,Services to People,RAA - ASF Grant," 4,908.35 ",401035,12968
16/03/2023,ZZC720813,1,12675,Tiptoes Child Therapy Services,999999,Fees and Charges,Fees and Charges,Services to People,RAA - ASF Grant," 10,000.00 ",401035,12968
16/03/2023,ZZC720818,1,12675,Tiptoes Child Therapy Services,999999,Fees and Charges,Fees and Charges,Services to People,RAA - ASF Grant," 5,000.00 ",401035,12968
17/03/2023,ZZC720824,1,13523,Ealing Council,320000,Social Community Care Supplies & Services  ,Care Payments,Services to People,RAA Adoption Count," 47,300.00 ",530306,12957
24/03/2023,ZZC721231,1,12675,Tiptoes Child Therapy Services,999999,Fees and Charges,Fees and Charges,Services to People,RAA - ASF Grant," 23,480.00 ",401035,12968
24/03/2023,ZZC721233,1,12675,Tiptoes Child Therapy Services,999999,Fees and Charges,Fees and Charges,Services to People,RAA - ASF Grant," 10,000.00 ",401035,12968
27/03/2023,ZZC721290,1,14262,Depaul UK,320000,Social Community Care Supplies & Services  ,Care Payments,Services to People,Staying Close," 64,477.00 ",530330,13191
29/03/2023,ZZC721390,1,12675,Tiptoes Child Therapy Services,999999,Fees and Charges,Fees and Charges,Services to People,RAA - ASF Grant," 5,000.00 ",401035,12968
29/03/2023,ZZC721391,1,12675,Tiptoes Child Therapy Services,999999,Fees and Charges,Fees and Charges,Services to People,RAA - ASF Grant," 5,000.00 ",401035,12968
29/03/2023,ZZC721415,1,12298,One Education Ltd,999999,Fees and Charges,Fees and Charges,Services to People,RAA - ASF Grant," 5,000.00 ",401035,12968
29/03/2023,ZZC721418,1,12137,TPC Therapy LTD,999999,Fees and Charges,Fees and Charges,Services to People,RAA - ASF Grant," 9,974.00 ",401035,12968
02/01/2023,ZZH717392,1,4369,Pennine Care NHS Trust,999999,Social Community Care Supplies & Services  ,Service Contract Payments,Services to People,PH-Drug & Alcohol," 7,746.00 ",561704,12731
03/01/2023,ZZH717415,1,4369,Pennine Care NHS Trust,999999,Social Community Care Supplies & Services  ,Service Contract Payments,Services to People,PH-Drug & Alcohol," 296,293.00 ",561704,12731
03/01/2023,ZZH717416,1,3446,Tameside Healthcare Ltd,150000,Consultancy   ,Professional Fees,Services to People,PH-Programme Mngmt," 17,522.00 ",401020,12732
03/01/2023,ZZH717417,1,6748,GEORGE COX & SONS LTD,390000,Supplies and services,Supplies and services,#N/A,#N/A," 52,056.81 ",401600,C.01445.201
03/01/2023,ZZH717418,1,683,AECOM Limited,150000,Consultancy   ,Professional Fees,#N/A,#N/A," 75,929.90 ",401007,C.00620.201
03/01/2023,ZZH717420,1,865,Bethell Construction Ltd,390000,Supplies and services,Supplies and services,#N/A,#N/A," 80,116.52 ",401600,C.01522.203
03/01/2023,ZZH717422,1,14860,Wilde Recruitment Ltd,390000,Supplies and services,Supplies and services,#N/A,#N/A," 62,292.80 ",401600,C.00880.203
03/01/2023,ZZH717424,1,12180,Acorn Care and Education,261500,Human Resources Training & Conferences ,Fees and Charges,Services to People,SEN Independent Sch," 25,727.64 ",401024,10372
03/01/2023,ZZH717440,1,4369,Pennine Care NHS Trust,290000,Arts & Leisure Services  ,Publicity and Promotion,Services to People,Family Hubs," 24,832.00 ",401801,13188
03/01/2023,ZZH717459,1,7025,CBRE Limited,150000,Consultancy   ,Professional Fees,Services to Place,Merseyway Shop Ctre," 19,250.00 ",401020,12866
03/01/2023,ZZH717462,1,1339,Stockport NHS Foundation Trust,261500,Human Resources Training & Conferences ,Fees and Charges,Services to People,CYP PH Contracts," 5,000.00 ",401024,13034
04/01/2023,ZZH717466,1,13451,HM Prison and Probation Servic,999999,Fees and Charges,Fees and Charges,Services to People,GMCA CS Grant," 6,152.00 ",402404,11505
04/01/2023,ZZH717478,1,6748,GEORGE COX & SONS LTD,390000,Supplies and services,Supplies and services,#N/A,#N/A," 11,247.68 ",401600,C.01250.203
04/01/2023,ZZH717496,1,3529,Totally Local Company Ltd,390000,Supplies and services,Supplies and services,#N/A,#N/A," 9,357.00 ",401600,C.00880.203
04/01/2023,ZZH717509,1,82,Marwood Electrical Company Ltd,390000,"Works - Construction, Repair & Maintenance  ",Capital Expenditure - Works,#N/A,#N/A," 3,675.00 ",200304,C.01198.203
04/01/2023,ZZH717509,2,82,Marwood Electrical Company Ltd,390000,"Works - Construction, Repair & Maintenance  ",Capital Expenditure - Works,#N/A,#N/A," 6,737.50 ",200304,C.01198.203
04/01/2023,ZZH717509,3,82,Marwood Electrical Company Ltd,390000,"Works - Construction, Repair & Maintenance  ",Capital Expenditure - Works,#N/A,#N/A, 612.50 ,200304,C.01198.203
04/01/2023,ZZH717509,4,82,Marwood Electrical Company Ltd,390000,"Works - Construction, Repair & Maintenance  ",Capital Expenditure - Works,#N/A,#N/A," 4,864.80 ",200304,C.01198.203
04/01/2023,ZZH717509,5,82,Marwood Electrical Company Ltd,390000,"Works - Construction, Repair & Maintenance  ",Capital Expenditure - Works,#N/A,#N/A," 17,837.60 ",200304,C.01198.203
04/01/2023,ZZH717512,1,82,Marwood Electrical Company Ltd,390000,"Works - Construction, Repair & Maintenance  ",Capital Expenditure - Works,#N/A,#N/A," 26,963.28 ",200304,C.01220.203
04/01/2023,ZZH717512,2,82,Marwood Electrical Company Ltd,390000,"Works - Construction, Repair & Maintenance  ",Capital Expenditure - Works,#N/A,#N/A," 17,928.54 ",200304,C.01220.203
06/01/2023,ZZH717550,1,11715,CBRE,150000,Consultancy   ,Professional Fees,Services to Place,Merseyway Shop Ctre," 6,750.00 ",401020,12866
06/01/2023,ZZH717563,1,15455,DV Green Earth Supplies Ltd,390000,"Works - Construction, Repair & Maintenance  ",Repairs and Maintenance,#N/A,#N/A," 5,120.00 ",200123,C.10545.193
06/01/2023,ZZH717579,1,7025,CBRE Limited,150000,Consultancy   ,Professional Fees,Services to Place,Merseyway Shop Ctre," 6,750.00 ",401020,12866
09/01/2023,ZZH717647,1,15476,Oakwood Home Learning (t/a Onl,320000,Social Community Care Supplies & Services  ,Third party payments - Private/Voluntary Sector,Services to People,Top-up Fund Post 16," 26,094.67 ",402403,12724
09/01/2023,ZZH717648,1,13316,New Bridge Multi Academy Group,320000,Social Community Care Supplies & Services  ,Third party payments - Private/Voluntary Sector,Services to People,Top-up Fund Post 16," 15,285.59 ",402403,12724
09/01/2023,ZZH717649,1,11497,ASK Autism,260000,Human Resources  ,Staff Training,Services to People,ASD Service," 8,513.00 ",102020,12742
10/01/2023,ZZH717674,1,3154,Deloitte Ltd,150000,Consultancy   ,Professional Fees,Services to Place,Operational Support," 140,000.00 ",401007,10924
10/01/2023,ZZH717675,1,13495,Pell Frischmann Consultants Lt,150000,Consultancy   ,Professional Fees,Services to Place,MS Design Frnwk Staf," 135,200.00 ",401020,13107
10/01/2023,ZZH717686,1,7025,CBRE Limited,150000,Consultancy   ,Professional Fees,Services to Place,MDC Mayoral DC," 30,873.13 ",401007,13033
10/01/2023,ZZH717711,1,1799,Stockport Homes,999999,UNCLASSIFIED  ,MISCLASSIFIED? CHECK BEFORE PUBLICATION,Services to People,Safer Streets," 5,578.08 ",100100,13194
11/01/2023,ZZH717755,1,12269,PENARTH GROUP,261500,Human Resources Training & Conferences ,Fees and Charges,Services to People,SEN Independent Sch," 11,108.33 ",401024,10372
11/01/2023,ZZH717756,1,12269,PENARTH GROUP,261500,Human Resources Training & Conferences ,Fees and Charges,Services to People,SEN Independent Sch," 8,476.92 ",401024,10372
11/01/2023,ZZH717758,1,12180,Acorn Care and Education,261500,Human Resources Training & Conferences ,Fees and Charges,Services to People,SEN Independent Sch," 23,100.00 ",401024,10372
12/01/2023,ZZH717851,1,2927,XMA Ltd,270000,Information Communication Technology  ,Information and Communications Technology,Corporate and Support Services,IT Traded (SHG)," 7,663.88 ",402002,12106
12/01/2023,ZZH717864,1,9715,NHS GREATER MANCHESTER INTEGRA,#N/A,#N/A,#N/A,Services to People,PH - COMF Grant," 16,367.00 ",400999,13097
13/01/2023,ZZH717878,1,6748,GEORGE COX & SONS LTD,390000,Supplies and services,Supplies and services,#N/A,#N/A," 24,688.71 ",401600,C.01533.203
13/01/2023,ZZH717880,1,3529,Totally Local Company Ltd,182000,Environmental Services Waste Management ,Waste Management,Services to Place,Pymnt to contctr R+R," 12,774.00 ",201804,10856
13/01/2023,ZZH717894,1,2356,Clancy Consulting Ltd,390000,Supplies and services,Supplies and services,Services to People,S.People Prog Grant," 9,050.00 ",401600,10962
13/01/2023,ZZH717925,1,5214,WSP GROUP PLC,150000,Consultancy   ,Professional Fees,Services to Place,Transport Strategy," 10,900.50 ",401020,13060
13/01/2023,ZZH717926,1,6967,Wilde Consultants Ltd,390000,Supplies and services,Supplies and services,#N/A,#N/A," 62,292.80 ",401600,C.00880.203
13/01/2023,ZZH717932,1,5214,WSP GROUP PLC,150000,Consultancy   ,Professional Fees,Services to Place,Transport Strategy," 11,032.16 ",401020,13060
16/01/2023,ZZH717953,1,13860,Howard Lynn Property Ltd,261400,Human Resources Temporary & Agency Staff ,Agency Staff,Services to Place,Property Client Acct," 5,996.21 ",100290,12328
16/01/2023,ZZH717971,1,82,Marwood Electrical Company Ltd,390000,"Works - Construction, Repair & Maintenance  ",Capital Expenditure - Works,#N/A,#N/A," 25,119.18 ",200304,C.01220.203
16/01/2023,ZZH717971,2,82,Marwood Electrical Company Ltd,390000,"Works - Construction, Repair & Maintenance  ",Capital Expenditure - Works,#N/A,#N/A," 50,811.46 ",200304,C.01220.203
16/01/2023,ZZH717971,3,82,Marwood Electrical Company Ltd,390000,"Works - Construction, Repair & Maintenance  ",Capital Expenditure - Works,#N/A,#N/A," 4,786.12 ",200304,C.01220.203
17/01/2023,ZZH717995,1,6189,CACI SoftSmart Ltd,270000,Information Communication Technology  ,Information and Communications Technology,Services to People,YOS Non-Staffing," 17,495.53 ",402001,11503
17/01/2023,ZZH718004,1,4083,Hulme Hall School,261500,Human Resources Training & Conferences ,Fees and Charges,Services to People,SEN Independent Sch," 15,982.00 ",401024,10372
17/01/2023,ZZH718039,1,5892,Groundwork Greater Manchester,999999,Fees and Charges,Fees and Charges,Services to People,YJB Junior Asmt Ctrs," 12,500.00 ",402404,10431
18/01/2023,ZZH718044,1,11203,British Pest Control Associati,260000,Human Resources  ,Staff Training,Services to Place,Pest Control," 7,056.00 ",102020,10897
18/01/2023,ZZH718055,1,9149,Public-i,181800,Environmental Services Technical Equipment ,Furniture and Equipment,Corporate and Support Services,Members Services," 18,853.00 ",400110,11111
18/01/2023,ZZH718074,1,8010,GROUNDWORK & LEISURE SERVIC,240000,Horticultural  ,Grounds Maintenance,#N/A,#N/A," 8,023.00 ",202032,C.10775
18/01/2023,ZZH718075,1,4625,SAP (UK) Ltd,270000,Information Communication Technology  ,Information and Communications Technology,Corporate and Support Services,I.T Business Relat," 70,965.65 ",402001,13044
19/01/2023,ZZH718112,1,4369,Pennine Care NHS Trust,310000,Healthcare  ,Third party payments - Public Sector,Services to People,Regional Imp Allianc," 8,000.00 ",500402,13031
19/01/2023,ZZH718148,1,15496,CIA Fire and Security Limited,240000,Horticultural  ,Grounds Maintenance,#N/A,#N/A," 23,500.00 ",202032,C.10775
19/01/2023,ZZH718152,1,4272,Civica UK Ltd,270000,Information Communication Technology  ,Information and Communications Technology,Corporate and Support Services,Bentax," 7,825.00 ",402001,11139
19/01/2023,ZZH718166,1,15501,Safer Care Ltd,210000,Furniture & Soft Furnishings  ,Furniture and Equipment,Services to People,Safer Streets," 10,000.00 ",400115,13194
20/01/2023,ZZH718186,1,12343,Land Use Consultants Ltd,150000,Consultancy   ,Professional Fees,Services to Place,Local Plan Project," 8,364.50 ",401007,12936
20/01/2023,ZZH718190,1,15505,Starfish Search Limited,261300,Human Resources Recruitment & Assessment ,Advertising,Services to People,PH-Programme Mngmt," 13,200.00 ",102040,12732
20/01/2023,ZZH718193,1,865,Bethell Construction Ltd,390000,Supplies and services,Supplies and services,#N/A,#N/A," 1,465,116.29 ",401600,C.01179.203
20/01/2023,ZZH718195,1,12193,Greater Manchester Combined Au,182015,Environmental Services Waste Management Waste Disposal,Third party payments - Levies,Services to Place,Public Realm Inspect," 135,026.00 ",500808,10879
20/01/2023,ZZH718208,1,3529,Totally Local Company Ltd,390000,Supplies and services,Supplies and services,Services to Place,Climate Change Now," 2,642.32 ",401600,13112
20/01/2023,ZZH718208,2,3529,Totally Local Company Ltd,390000,Supplies and services,Supplies and services,Services to Place,Climate Change Now," 3,305.88 ",401600,13112
20/01/2023,ZZH718213,1,683,AECOM Limited,150000,Consultancy   ,Professional Fees,Services to Place,Feasibility," 35,412.00 ",401020,13062
20/01/2023,ZZH718214,1,683,AECOM Limited,150000,Consultancy   ,Professional Fees,Services to Place,Feasibility," 56,642.56 ",401020,13062
20/01/2023,ZZH718220,1,2642,Read - The Reading Agency,171113,Education Library Books ,Library Equipment,Corporate and Support Services,Library Dev & Res," 9,182.00 ",400207,11328
20/01/2023,ZZH718226,1,1799,Stockport Homes,181800,Environmental Services Technical Equipment ,Furniture and Equipment,Corporate and Support Services,Public Libraries Gen," 26,211.00 ",400111,11329
23/01/2023,ZZH718266,1,15378,Tile Hill Interim & Executive,150000,Consultancy   ,Professional Fees,Corporate and Support Services,Chief Execs Office," 88,816.00 ",401020,11112
23/01/2023,ZZH718270,1,2746,Local Government Info Unit,200000,Financial Services  ,Fees and Charges,Corporate and Support Services,Strategy & Design," 15,515.00 ",402401,12642
24/01/2023,ZZH718288,1,13223,A Pacini Ltd,261400,Human Resources Temporary & Agency Staff ,Agency Staff,Services to Place,Property Client Acct," 5,326.50 ",100290,12328
24/01/2023,ZZH718308,1,14527,Data Images Software Solutions,150000,Consultancy   ,Professional Fees,Services to People,SEN Trans-Staffing," 11,000.00 ",401020,10759
24/01/2023,ZZH718311,1,11466,High Peak School Ltd,261500,Human Resources Training & Conferences ,Fees and Charges,Services to People,SEN Independent Sch," 13,303.33 ",401024,10372
24/01/2023,ZZH718312,1,11466,High Peak School Ltd,261500,Human Resources Training & Conferences ,Fees and Charges,Services to People,SEN Independent Sch," 13,155.08 ",401024,10372
25/01/2023,ZZH718340,1,7025,CBRE Limited,150000,Consultancy   ,Professional Fees,Services to Place,Stockport Exch.Phase," 13,650.00 ",401020,13085
25/01/2023,ZZH718358,1,7183,BLACKBURN WITH DARWEN,999999,Third party payments - Public Sector,Third party payments - Public Sector,Services to People,Regional Imp Allianc," 10,632.00 ",500303,13031
25/01/2023,ZZH718359,1,5183,HERTFORDSHIRE COUNTY,999999,Third party payments - Public Sector,Third party payments - Public Sector,Services to People,Regional Imp Allianc," 98,045.00 ",500303,13031
25/01/2023,ZZH718368,1,15499,Paul Bowe,290000,Arts & Leisure Services  ,Publicity and Promotion,Services to Place,Arts Development," 9,500.00 ",401801,11384
26/01/2023,ZZH718395,1,14349,madlab,290000,Arts & Leisure Services  ,Publicity and Promotion,Services to Place,Arts Development," 20,000.00 ",401801,11384
26/01/2023,ZZH718409,1,658,Disability Stockport,320000,Social Community Care Supplies & Services  ,Third party payments - Private/Voluntary Sector,Services to People,H'sehold S'port Fund," 100,000.00 ",402403,13154
26/01/2023,ZZH718409,2,658,Disability Stockport,320000,Social Community Care Supplies & Services  ,Third party payments - Private/Voluntary Sector,Services to People,H'sehold S'port Fund," 10,000.00 ",402403,13154
26/01/2023,ZZH718412,1,1799,Stockport Homes,320000,Social Community Care Supplies & Services  ,Third party payments - Private/Voluntary Sector,Services to People,H'sehold S'port Fund," 50,000.00 ",402403,13154
26/01/2023,ZZH718412,2,1799,Stockport Homes,320000,Social Community Care Supplies & Services  ,Third party payments - Private/Voluntary Sector,Services to People,H'sehold S'port Fund," 5,000.00 ",402403,13154
26/01/2023,ZZH718413,1,6748,GEORGE COX & SONS LTD,390000,Supplies and services,Supplies and services,#N/A,#N/A," 14,578.55 ",401600,C.01524.203
26/01/2023,ZZH718415,1,1799,Stockport Homes,320000,Social Community Care Supplies & Services  ,Third party payments - Private/Voluntary Sector,Services to People,H'sehold S'port Fund," 20,000.00 ",402403,13154
26/01/2023,ZZH718415,2,1799,Stockport Homes,320000,Social Community Care Supplies & Services  ,Third party payments - Private/Voluntary Sector,Services to People,H'sehold S'port Fund," 2,000.00 ",402403,13154
26/01/2023,ZZH718417,1,1799,Stockport Homes,320000,Social Community Care Supplies & Services  ,Third party payments - Private/Voluntary Sector,Services to People,H'sehold S'port Fund," 200,000.00 ",402403,13154
26/01/2023,ZZH718417,2,1799,Stockport Homes,320000,Social Community Care Supplies & Services  ,Third party payments - Private/Voluntary Sector,Services to People,H'sehold S'port Fund," 20,000.00 ",402403,13154
26/01/2023,ZZH718436,1,3529,Totally Local Company Ltd,390000,Supplies and services,Supplies and services,#N/A,#N/A," 14,260.00 ",401600,C.01194.203
27/01/2023,ZZH718490,1,5535,Elementary Technology Ltd,270000,Information Communication Technology  ,Information and Communications Technology,#N/A,#N/A," 50,680.00 ",402001,C.10423.184
27/01/2023,ZZH718490,2,5535,Elementary Technology Ltd,270000,Information Communication Technology  ,Information and Communications Technology,#N/A,#N/A," 5,460.00 ",402001,C.10423.184
27/01/2023,ZZH718490,3,5535,Elementary Technology Ltd,270000,Information Communication Technology  ,Information and Communications Technology,#N/A,#N/A," 3,500.00 ",402001,C.10423.184
27/01/2023,ZZH718490,4,5535,Elementary Technology Ltd,270000,Information Communication Technology  ,Information and Communications Technology,#N/A,#N/A," 6,300.00 ",402001,C.10423.184
27/01/2023,ZZH718490,5,5535,Elementary Technology Ltd,270000,Information Communication Technology  ,Information and Communications Technology,#N/A,#N/A," 2,040.00 ",402001,C.10423.184
27/01/2023,ZZH718490,6,5535,Elementary Technology Ltd,270000,Information Communication Technology  ,Information and Communications Technology,#N/A,#N/A," 2,660.00 ",402001,C.10423.184
27/01/2023,ZZH718490,7,5535,Elementary Technology Ltd,270000,Information Communication Technology  ,Information and Communications Technology,#N/A,#N/A," 6,300.00 ",402001,C.10423.184
27/01/2023,ZZH718490,8,5535,Elementary Technology Ltd,270000,Information Communication Technology  ,Information and Communications Technology,#N/A,#N/A," 3,516.00 ",402001,C.10423.184
27/01/2023,ZZH718490,9,5535,Elementary Technology Ltd,270000,Information Communication Technology  ,Information and Communications Technology,#N/A,#N/A, 500.00 ,402001,C.10423.184
27/01/2023,ZZH718490,10,5535,Elementary Technology Ltd,270000,Information Communication Technology  ,Information and Communications Technology,#N/A,#N/A, 900.00 ,402001,C.10423.184
27/01/2023,ZZH718490,11,5535,Elementary Technology Ltd,270000,Information Communication Technology  ,Information and Communications Technology,#N/A,#N/A, 500.00 ,402001,C.10423.184
30/01/2023,ZZH718521,1,14978,EDGEPS LTD,390000,"Works - Construction, Repair & Maintenance  ",Repairs and Maintenance,#N/A,#N/A," 8,000.00 ",200123,C.11515
30/01/2023,ZZH718545,1,13451,HM Prison and Probation Servic,320000,Social Community Care Supplies & Services  ,Third party payments - Private/Voluntary Sector,Corporate and Support Services,GMCA Cmnity Sfty Fnd," 12,000.00 ",402403,12965
30/01/2023,ZZH718561,1,815,University of Manchester,260000,Human Resources  ,Staff Training,Services to Place,Property Client Acct," 6,200.00 ",102020,12328
30/01/2023,ZZH718565,1,15503,Geowarmth Heat Pumps Ltd,390000,"Works - Construction, Repair & Maintenance  ",Repairs and Maintenance,#N/A,#N/A," 24,500.00 ",200123,C.10316.250
30/01/2023,ZZH718568,1,15516,Gartner UK Ltd,260000,Human Resources  ,Staff Training,Corporate and Support Services,Business Intelligenc," 6,930.00 ",102020,11872
30/01/2023,ZZH718569,1,12608,Liquidlogic Limited,270000,Information Communication Technology  ,Information and Communications Technology,Corporate and Support Services,I.T Business Relat," 125,658.58 ",402001,13044
30/01/2023,ZZH718576,1,6748,GEORGE COX & SONS LTD,390000,Supplies and services,Supplies and services,#N/A,#N/A," 5,058.22 ",401600,C.00620.201
30/01/2023,ZZH718588,1,1104,Age UK Stockport,999999,Fees and Charges,Fees and Charges,Services to People,Home Support," 18,500.00 ",401035,13176
30/01/2023,ZZH718598,1,15175,Wybone Limited,350000,Street & Traffic Management  ,Fixtures and Fittings,Services to Place,Public Realm Inspect," 5,100.00 ",201202,10879
30/01/2023,ZZH718600,1,1900,Broxap Ltd,190000,Facilities & Management Services  ,Fixtures and Fittings,Services to Place,Memorial Benches," 8,385.00 ",201201,11279
30/01/2023,ZZH718600,2,1900,Broxap Ltd,190000,Facilities & Management Services  ,Fixtures and Fittings,Services to Place,Memorial Benches, 289.00 ,201201,11279
30/01/2023,ZZH718600,3,1900,Broxap Ltd,190000,Facilities & Management Services  ,Fixtures and Fittings,Services to Place,Memorial Benches, 642.00 ,201201,11279
30/01/2023,ZZH718600,4,1900,Broxap Ltd,190000,Facilities & Management Services  ,Fixtures and Fittings,Services to Place,Memorial Benches, 938.00 ,201201,11279
30/01/2023,ZZH718602,1,1799,Stockport Homes,320000,Social Community Care Supplies & Services  ,Third party payments - Private/Voluntary Sector,Services to People,Your Support," 970,000.00 ",500530,13174
30/01/2023,ZZH718607,1,1799,Stockport Homes,181800,Environmental Services Technical Equipment ,Furniture and Equipment,Corporate and Support Services,Public Libraries Gen," 26,211.00 ",400111,11329
30/01/2023,ZZH718614,1,13116,Mazars LLP,201100,Financial Services Audit ,Professional Fees,Corporate and Support Services,U-Misc Fin-Corp Mang," 109,068.00 ",401003,10971
31/01/2023,ZZH718639,1,3529,Totally Local Company Ltd,390000,"Works - Construction, Repair & Maintenance  ",Capital Expenditure - Works,#N/A,#N/A," 5,346.76 ",200304,C.01435.203
31/01/2023,ZZH718643,1,15515,Roadworks Information Ltd T/A,270000,Information Communication Technology  ,Information and Communications Technology,Services to Place,GMRAPS," 18,750.00 ",402001,12650
31/01/2023,ZZH718645,1,7025,CBRE Limited,150000,Consultancy   ,Professional Fees,Services to Place,MDC Mayoral DC," 33,662.93 ",401007,13033
31/01/2023,ZZH718646,1,7025,CBRE Limited,150000,Consultancy   ,Professional Fees,Services to Place,MDC Mayoral DC," 22,500.00 ",401007,13033
31/01/2023,ZZH718649,1,3284,Stockport CP Ltd t/a Supportab,320000,Social Community Care Supplies & Services  ,Care Payments,Services to People,DP - Respite," 7,785.00 ",530358,11513
31/01/2023,ZZH718657,1,11715,CBRE,150000,Consultancy   ,Professional Fees,Services to Place,MDC Mayoral DC," 30,873.13 ",401007,13033
31/01/2023,ZZH718661,1,9494,Patrol - Parking Charges,200000,Financial Services  ,Fees and Charges,Services to Place,Moving Traffic," 5,135.10 ",402401,13014
31/01/2023,ZZH718664,1,12608,Liquidlogic Limited,270000,Information Communication Technology  ,Information and Communications Technology,Services to People,SEND Inspection," 10,000.00 ",402001,13026
31/01/2023,ZZH718665,1,12608,Liquidlogic Limited,270000,Information Communication Technology  ,Information and Communications Technology,Services to People,SEND Inspection," 10,000.00 ",402001,13026
31/01/2023,ZZH718683,1,12332,Broad Oak Primary School,170000,Education  ,Third party payments - Public Sector,Services to People,OLA pupils," 7,814.00 ",500304,10371
31/01/2023,ZZH718684,1,12332,Broad Oak Primary School,170000,Education  ,Third party payments - Public Sector,Services to People,OLA pupils," 10,442.00 ",500304,10371
31/01/2023,ZZH718685,1,12332,Broad Oak Primary School,170000,Education  ,Third party payments - Public Sector,Services to People,OLA pupils," 10,442.00 ",500304,10371
31/01/2023,ZZH718691,1,15378,Tile Hill Interim & Executive,261300,Human Resources Recruitment & Assessment ,Advertising,Corporate and Support Services,POD Communications," 17,000.00 ",102040,11323
31/01/2023,ZZH718704,1,14079,Boxxe,270000,Information Communication Technology  ,Information and Communications Technology,Corporate and Support Services,IT Systems," 129,827.00 ",402002,12503
31/01/2023,ZZH718706,1,3284,Stockport CP Ltd t/a Supportab,320000,Social Community Care Supplies & Services  ,Care Payments,Services to People,DP - Respite," 5,190.00 ",530358,11513
31/01/2023,ZZH718716,1,5014,The Compost Bag Company Ltd,182020,Environmental Services Waste Management,Waste Management Equipment,Services to Place,Food ContrsHouse Bag," 237,352.55 ",400401,10865
01/02/2023,ZZH718740,1,4272,Civica UK Ltd,270000,Information Communication Technology  ,Information and Communications Technology,Corporate and Support Services,Bentax," 9,000.00 ",402010,11139
01/02/2023,ZZH718753,1,3707,Salford City Council/Finance,999999,Third party payments - Public Sector,Third party payments - Public Sector,Services to Place,Air Group," 10,000.00 ",500303,10920
02/02/2023,ZZH718826,1,13974,ADDLESHAW GODDARD,280000,Legal Services  ,Legal Fees,Corporate and Support Services,Legal Fees Budget," 9,291.25 ",401016,12271
02/02/2023,ZZH718830,1,10349,InterWorks Europe Limited,270000,Information Communication Technology  ,Information and Communications Technology,Corporate and Support Services,Business Intelligenc," 40,776.00 ",402001,11872
02/02/2023,ZZH718836,1,13951,Ali Gardner t/a Head Heart Han,260000,Human Resources  ,Staff Training,Corporate and Support Services,POD Workforce Dev," 6,400.00 ",102020,11888
03/02/2023,ZZH718862,1,2451,Manchester and Cheshire Constr,390000,"Works - Construction, Repair & Maintenance  ",Repairs and Maintenance,#N/A,#N/A," 282,609.09 ",200123,C.11502.145
06/02/2023,ZZH718911,1,8106,Tarmac Trading Ltd,390000,"Works - Construction, Repair & Maintenance  ",Capital Expenditure - Works,#N/A,#N/A," 32,931.27 ",200304,C.01551.203
06/02/2023,ZZH718923,1,7025,CBRE Limited,150000,Consultancy   ,Professional Fees,Services to Place,Merseyway Shop Ctre," 6,320.00 ",401020,12866
06/02/2023,ZZH718923,2,7025,CBRE Limited,150000,Consultancy   ,Professional Fees,Services to Place,Merseyway Shop Ctre," 37,500.00 ",401020,12866
06/02/2023,ZZH718936,1,6748,GEORGE COX & SONS LTD,150000,Consultancy   ,Professional Fees,#N/A,#N/A," 13,204.20 ",401007,C.01503.202
06/02/2023,ZZH718947,1,845,Dotted Eyes Ltd,270000,Information Communication Technology  ,Information and Communications Technology,Corporate and Support Services,Business Intelligenc," 6,000.00 ",402001,11872
07/02/2023,ZZH718968,1,15135,Built Environment Networking L,290000,Arts & Leisure Services  ,Publicity and Promotion,Services to Place,MDC Mayoral Dev Co," 5,000.00 ",401801,13198
07/02/2023,ZZH718990,1,15378,Tile Hill Interim & Executive,150000,Consultancy   ,Professional Fees,Corporate and Support Services,Chief Execs Office," 102,060.00 ",401020,11112
07/02/2023,ZZH719002,1,4272,Civica UK Ltd,270000,Information Communication Technology  ,Information and Communications Technology,Corporate and Support Services,Legal Services," 22,462.50 ",402001,11117
07/02/2023,ZZH719039,1,13445,All Pump Solutions,230000,Highway Equipment & Materials�   ,Highways Maintenance,Services to Place,A6 Marr Maintenance," 5,025.00 ",202050,13039
08/02/2023,ZZH719063,1,12609,Sunbelt Rentals Limited,210000,Furniture & Soft Furnishings  ,Furniture and Equipment,Corporate and Support Services,Local Election," 18,110.00 ",400105,12102
08/02/2023,ZZH719064,1,13860,Howard Lynn Property Ltd,261400,Human Resources Temporary & Agency Staff ,Agency Staff,Services to Place,Property Client Acct," 6,626.21 ",100290,12328
08/02/2023,ZZH719065,1,4272,Civica UK Ltd,270000,Information Communication Technology  ,Information and Communications Technology,Services to Place,Property Client Acct," 12,675.00 ",402001,12328
08/02/2023,ZZH719075,1,6748,GEORGE COX & SONS LTD,390000,Supplies and services,Supplies and services,#N/A,#N/A," 44,168.35 ",401600,C.01250.203
08/02/2023,ZZH719076,1,6748,GEORGE COX & SONS LTD,390000,Supplies and services,Supplies and services,#N/A,#N/A," 25,380.18 ",401600,C.01527.203
08/02/2023,ZZH719078,1,6748,GEORGE COX & SONS LTD,390000,Supplies and services,Supplies and services,#N/A,#N/A," 44,168.35 ",401600,C.01250.203
08/02/2023,ZZH719097,1,10858,Acorn Recovery Projects,261500,Human Resources Training & Conferences ,Fees and Charges,Services to Place,Contin Educ Service," 26,928.38 ",401024,10511
08/02/2023,ZZH719100,1,14803,Care Together Consultancy Limi,150000,Consultancy   ,Professional Fees,Services to People,REaCH SS Manager," 25,000.00 ",401020,13069
08/02/2023,ZZH719106,1,14236,Coram Voice,150000,Consultancy   ,Professional Fees,Services to People,SG - Child Prot-Lscb," 7,750.00 ",401020,11424
08/02/2023,ZZH719108,1,15091,The Innovation Unit,290000,Arts & Leisure Services  ,Publicity and Promotion,Services to People,Family Hubs," 18,300.00 ",401801,13188
08/02/2023,ZZH719114,1,9494,Patrol - Parking Charges,200000,Financial Services  ,Fees and Charges,Services to Place,Moving Traffic," 5,135.10 ",402401,13014
09/02/2023,ZZH719118,1,12193,Greater Manchester Combined Au,150000,Consultancy   ,Professional Fees,Corporate and Support Services,Info & Governance," 5,206.00 ",401020,11146
09/02/2023,ZZH719119,1,1339,Stockport NHS Foundation Trust,290000,Arts & Leisure Services  ,Publicity and Promotion,Services to People,Family Hubs," 15,000.00 ",401801,13188
09/02/2023,ZZH719120,1,1339,Stockport NHS Foundation Trust,290000,Arts & Leisure Services  ,Publicity and Promotion,Services to People,Family Hubs," 11,975.00 ",401801,13188
09/02/2023,ZZH719125,1,6748,GEORGE COX & SONS LTD,390000,Supplies and services,Supplies and services,#N/A,#N/A," 8,692.48 ",401600,C.01529.203
09/02/2023,ZZH719129,1,6170,Greater Manchester TreeStation,240000,Horticultural  ,Grounds Maintenance,#N/A,#N/A," 8,995.00 ",202032,C.01451.203
09/02/2023,ZZH719152,1,15102,Westwood Homecare Ltd (NW),320000,Social Community Care Supplies & Services  ,Care Payments,Services to People,DP - Respite," 14,958.72 ",530335,11513
09/02/2023,ZZH719157,1,8233,MGB Plastics Ltd,182020,Environmental Services Waste Management,Waste Management Equipment,Services to Place,Wheelie Bins," 15,456.00 ",400401,10864
09/02/2023,ZZH719158,1,12024,REMEDI - RESTORATIVE SERVICES,290000,Arts & Leisure Services  ,Publicity and Promotion,Services to People,Safer Streets," 10,000.00 ",401801,13194
09/02/2023,ZZH719172,1,14525,Carol Ellwood-Clarke,150000,Consultancy   ,Professional Fees,Services to People,SA Board," 7,500.00 ",401020,12825
09/02/2023,ZZH719173,1,2203,Experian Ltd,270000,Information Communication Technology  ,Information and Communications Technology,Corporate and Support Services,Business Intelligenc," 13,233.00 ",402001,11872
09/02/2023,ZZH719174,1,3529,Totally Local Company Ltd,390000,"Works - Construction, Repair & Maintenance  ",Capital Expenditure - Works,#N/A,#N/A," 23,778.96 ",200304,C.11508.004
09/02/2023,ZZH719191,1,933,Ricardo - AEA,220000,Health & Safety�  ,Fees and Charges,Services to Place,Air Group," 5,550.00 ",401000,10920
09/02/2023,ZZH719193,1,3529,Totally Local Company Ltd,240000,Horticultural  ,Grounds Maintenance,Services to Place,Mill Lane Cemetery," 12,500.00 ",202030,11287
10/02/2023,ZZH719207,1,261,Elcom Systems Ltd,270000,Information Communication Technology  ,Information and Communications Technology,Corporate and Support Services,I.T Business Relat," 42,754.27 ",402001,13044
10/02/2023,ZZH719207,2,261,Elcom Systems Ltd,270000,Information Communication Technology  ,Information and Communications Technology,Corporate and Support Services,I.T Business Relat," 42,754.27 ",402001,13044
10/02/2023,ZZH719215,1,1339,Stockport NHS Foundation Trust,290000,Arts & Leisure Services  ,Publicity and Promotion,Services to People,Family Hubs," 8,833.33 ",401801,13188
10/02/2023,ZZH719235,1,1339,Stockport NHS Foundation Trust,290000,Arts & Leisure Services  ,Publicity and Promotion,Services to People,Start Well Ops Staff," 19,200.00 ",401801,12880
13/02/2023,ZZH719275,1,5214,WSP GROUP PLC,390000,Supplies and services,Supplies and services,#N/A,#N/A," 8,924.00 ",401600,C.01468.201
13/02/2023,ZZH719276,1,3529,Totally Local Company Ltd,390000,Supplies and services,Supplies and services,Services to Place,Nature-Arboriculture," 6,522.00 ",401600,11281
13/02/2023,ZZH719283,1,12180,Acorn Care and Education,261500,Human Resources Training & Conferences ,Fees and Charges,Services to People,SEN Independent Sch," 11,403.90 ",401024,10372
13/02/2023,ZZH719293,1,13990,ANS global,240000,Horticultural  ,Grounds Maintenance,Services to Place,Redrock IE," 9,851.72 ",202032,12062
13/02/2023,ZZH719297,1,12269,PENARTH GROUP,261500,Human Resources Training & Conferences ,Fees and Charges,Services to People,SEN Independent Sch," 12,006.08 ",401024,10372
13/02/2023,ZZH719300,1,8423,SMS Coaching Limited,261500,Human Resources Training & Conferences ,Fees and Charges,Services to People,SEN Independent Sch," 8,216.67 ",401024,10372
13/02/2023,ZZH719302,1,4272,Civica UK Ltd,270000,Information Communication Technology  ,Information and Communications Technology,Corporate and Support Services,Members Services," 12,189.32 ",402001,11111
13/02/2023,ZZH719303,1,15520,Kingfisher Lighting Ltd,390000,"Works - Construction, Repair & Maintenance  ",Repairs and Maintenance,#N/A,#N/A," 104,832.00 ",200123,C.11502.136
13/02/2023,ZZH719307,1,15533,Socitm Advisory Limited,150000,Consultancy   ,Professional Fees,Corporate and Support Services,Mangt Accounting," 101,250.00 ",401007,12872
14/02/2023,ZZH719328,1,15402,Eric Wright Civil Engineering,150000,Consultancy   ,Professional Fees,#N/A,#N/A," 9,999.00 ",401007,C.01499.201
14/02/2023,ZZH719381,1,7048,Bridgeall Libraries Limited,171113,Education Library Books ,Library Equipment,Corporate and Support Services,Library Dev & Res," 8,749.00 ",400207,11328
15/02/2023,ZZH719397,1,7782,Landscape Engineering Ltd,240000,Horticultural  ,Grounds Maintenance,#N/A,#N/A," 10,237.30 ",202032,C.10775
15/02/2023,ZZH719400,1,12608,Liquidlogic Limited,270000,Information Communication Technology  ,Information and Communications Technology,Services to People,SEN Specific support," 6,750.00 ",402001,10300
16/02/2023,ZZH719451,1,1872,Marketing Manchester,261500,Human Resources Training & Conferences ,Expenses and Allowances,Services to Place,Town Centre Devt Tea," 7,500.00 ",402201,10072
16/02/2023,ZZH719452,1,10070,LDM UK,340000,Stationery    ,Office Expenses,Services to Place,MDC Mayoral DC," 9,450.00 ",400707,13033
16/02/2023,ZZH719464,1,12193,Greater Manchester Combined Au,999999,Fees and Charges,Fees and Charges,Corporate and Support Services,U-Misc Fin-Corp Mang," 1,702,490.00 ",401035,10971
16/02/2023,ZZH719476,1,1900,Broxap Ltd,181800,Environmental Services Technical Equipment ,Furniture and Equipment,Services to Place,Memorial Benches," 6,770.00 ",400110,11279
16/02/2023,ZZH719476,2,1900,Broxap Ltd,181800,Environmental Services Technical Equipment ,Furniture and Equipment,Services to Place,Memorial Benches, 625.00 ,400110,11279
17/02/2023,ZZH719494,1,421,Bond Solon Training Ltd,260000,Human Resources  ,Staff Training,Services to People,CYP ASYE," 8,500.00 ",102020,12953
17/02/2023,ZZH719501,1,6748,GEORGE COX & SONS LTD,150000,Consultancy   ,Professional Fees,#N/A,#N/A," 49,360.95 ",401007,C.01509.202
17/02/2023,ZZH719506,1,534,Kompan Ltd,240000,Horticultural  ,Grounds Maintenance,#N/A,#N/A," 9,645.80 ",202032,C.10775
17/02/2023,ZZH719523,1,7030,MANCHESTER CITY COUNCIL SHARED,261400,Human Resources Temporary & Agency Staff ,Agency Staff,Services to People,GM House Project," 59,430.00 ",100290,13193
20/02/2023,ZZH719575,1,6748,GEORGE COX & SONS LTD,150000,Consultancy   ,Professional Fees,#N/A,#N/A," 37,960.19 ",401007,C.01504.202
20/02/2023,ZZH719576,1,6748,GEORGE COX & SONS LTD,150000,Consultancy   ,Professional Fees,#N/A,#N/A," 42,550.79 ",401007,C.01505.202
20/02/2023,ZZH719577,1,6748,GEORGE COX & SONS LTD,150000,Consultancy   ,Professional Fees,#N/A,#N/A," 21,501.96 ",401007,C.01506.202
20/02/2023,ZZH719584,1,3763,IDOX Software Ltd,390000,Supplies and services,Supplies and services,Services to People,Early Implementer EY," 16,355.00 ",401600,12903
20/02/2023,ZZH719590,1,11715,CBRE,210000,Furniture & Soft Furnishings  ,Furniture and Equipment,Services to People,Safer Streets," 7,656.00 ",400115,13194
21/02/2023,ZZH719593,1,12193,Greater Manchester Combined Au,230000,Highway Equipment & Materials�   ,Highways Maintenance,#N/A,#N/A," 25,264.15 ",202054,C.01565.202
21/02/2023,ZZH719594,1,5835,Virgin Media Access Network Pl,230000,Highway Equipment & Materials�   ,Highways Maintenance,#N/A,#N/A," 15,139.26 ",202055,C.01565.202
21/02/2023,ZZH719595,1,12384,Synergy Stockport,320000,Social Community Care Supplies & Services  ,Third party payments - Private/Voluntary Sector,Services to Place,Homes for Ukraine," 25,000.00 ",402403,13183
21/02/2023,ZZH719606,1,1339,Stockport NHS Foundation Trust,260000,Human Resources  ,Other Payments,Services to People,PH-Health Protection," 28,400.00 ",100304,12739
21/02/2023,ZZH719617,1,3186,University of Derby,320000,Social Community Care Supplies & Services  ,Third party payments - Private/Voluntary Sector,Services to People,Top-up Fund Post 16," 5,991.97 ",402403,12724
21/02/2023,ZZH719618,1,15526,SCL Education and Training,320000,Social Community Care Supplies & Services  ,Third party payments - Private/Voluntary Sector,Services to People,Top-up Fund Post 16," 5,093.33 ",402403,12724
21/02/2023,ZZH719619,1,7925,Macclesfield College,320000,Social Community Care Supplies & Services  ,Third party payments - Private/Voluntary Sector,Services to People,Top-up Fund Post 16," 25,904.49 ",402403,12724
21/02/2023,ZZH719640,1,13974,ADDLESHAW GODDARD,280000,Legal Services  ,Legal Fees,#N/A,#N/A," 90,224.44 ",401016,C.10976
22/02/2023,ZZH719668,1,3529,Totally Local Company Ltd,390000,Supplies and services,Supplies and services,#N/A,#N/A," 27,846.41 ",401600,C.01572.203
22/02/2023,ZZH719669,1,3529,Totally Local Company Ltd,390000,Supplies and services,Supplies and services,#N/A,#N/A," 7,985.00 ",401600,C.01572.203
22/02/2023,ZZH719670,1,8106,Tarmac Trading Ltd,390000,Supplies and services,Supplies and services,#N/A,#N/A," 62,977.18 ",401600,C.01572.203
22/02/2023,ZZH719737,1,8876,Legacy Telecom Ltd,#N/A,#N/A,#N/A,Services to People,WB  SW Team 1, 487.50 ,400999,13129
22/02/2023,ZZH719737,2,8876,Legacy Telecom Ltd,#N/A,#N/A,#N/A,Services to People,WB SW Team 2, 390.00 ,400999,13130
22/02/2023,ZZH719737,3,8876,Legacy Telecom Ltd,#N/A,#N/A,#N/A,#N/A,#N/A, 487.50 ,400999,13131
22/02/2023,ZZH719737,4,8876,Legacy Telecom Ltd,#N/A,#N/A,#N/A,Services to People,HR SW Team 1, 487.50 ,400999,13132
22/02/2023,ZZH719737,5,8876,Legacy Telecom Ltd,#N/A,#N/A,#N/A,Services to People,HR SW Team 2, 487.50 ,400999,13133
22/02/2023,ZZH719737,6,8876,Legacy Telecom Ltd,#N/A,#N/A,#N/A,Services to People,Bramhall SW Team 1, 487.50 ,400999,13134
22/02/2023,ZZH719737,7,8876,Legacy Telecom Ltd,#N/A,#N/A,#N/A,Services to People,Cheadle SW Team 1, 487.50 ,400999,13135
22/02/2023,ZZH719737,8,8876,Legacy Telecom Ltd,#N/A,#N/A,#N/A,Services to People,Edgeley SW Team 1, 390.00 ,400999,13136
22/02/2023,ZZH719737,9,8876,Legacy Telecom Ltd,#N/A,#N/A,#N/A,Services to People,Edgeley SW Team 2, 292.50 ,400999,13137
22/02/2023,ZZH719737,10,8876,Legacy Telecom Ltd,#N/A,#N/A,#N/A,Services to People,GO/HG SW Team 1, 585.00 ,400999,13138
22/02/2023,ZZH719737,11,8876,Legacy Telecom Ltd,#N/A,#N/A,#N/A,Services to People,GO/HG SW Team 2, 487.50 ,400999,13139
22/02/2023,ZZH719737,12,8876,Legacy Telecom Ltd,#N/A,#N/A,#N/A,Services to People,DP - Staffing, 487.50 ,400999,11484
23/02/2023,ZZH719772,1,12816,Eversheds Sutherland (Internat,390000,Supplies and services,Supplies and services,#N/A,#N/A," 5,000.00 ",401600,C.00845.203
23/02/2023,ZZH719777,1,1799,Stockport Homes,320000,Social Community Care Supplies & Services  ,Care Payments,Services to People,Extra Care Hsg Block," 17,902.10 ",530328,12219
23/02/2023,ZZH719800,1,15540,Absolute Care and Support (UK),320000,Social Community Care Supplies & Services  ,Care Payments,Services to People,Marple ECH," 250,000.00 ",530332,13050
24/02/2023,ZZH719811,1,6909,Learning Pool Ltd,270000,Information Communication Technology  ,Information and Communications Technology,Corporate and Support Services,POD Workforce Dev," 48,790.00 ",402010,11888
24/02/2023,ZZH719812,1,15550,Gettheworldmoving (UK) Limited,260000,Human Resources  ,Staff Training,Corporate and Support Services,POD Workforce Dev," 20,003.76 ",102020,11888
24/02/2023,ZZH719814,1,14258,Optima Health,311410,Healthcare Occupational Therapy Services ,Fees and Charges,Corporate and Support Services,POD Occ. Health," 300,000.00 ",400706,11721
24/02/2023,ZZH719818,1,10710,Turner & Townsend,150000,Consultancy   ,Professional Fees,Services to Place,MDC Mayoral DC," 5,000.00 ",401007,13033
24/02/2023,ZZH719823,1,12193,Greater Manchester Combined Au,390000,"Works - Construction, Repair & Maintenance  ",Capital Expenditure - Works,#N/A,#N/A," 6,645.19 ",200304,C.00614.203
24/02/2023,ZZH719824,1,3529,Totally Local Company Ltd,390000,"Works - Construction, Repair & Maintenance  ",Capital Expenditure - Works,#N/A,#N/A, 417.24 ,200304,C.01198.203
24/02/2023,ZZH719824,2,3529,Totally Local Company Ltd,390000,"Works - Construction, Repair & Maintenance  ",Capital Expenditure - Works,#N/A,#N/A," 2,002.80 ",200304,C.01198.203
24/02/2023,ZZH719824,3,3529,Totally Local Company Ltd,390000,"Works - Construction, Repair & Maintenance  ",Capital Expenditure - Works,#N/A,#N/A," 1,577.94 ",200304,C.01198.203
24/02/2023,ZZH719824,4,3529,Totally Local Company Ltd,390000,"Works - Construction, Repair & Maintenance  ",Capital Expenditure - Works,#N/A,#N/A," 1,048.35 ",200304,C.01198.203
24/02/2023,ZZH719825,1,82,Marwood Electrical Company Ltd,390000,"Works - Construction, Repair & Maintenance  ",Capital Expenditure - Works,#N/A,#N/A," 16,398.40 ",200304,C.01220.203
24/02/2023,ZZH719825,2,82,Marwood Electrical Company Ltd,390000,"Works - Construction, Repair & Maintenance  ",Capital Expenditure - Works,#N/A,#N/A," 4,895.08 ",200304,C.01220.203
24/02/2023,ZZH719828,1,15472,Bryt Energy Ltd,370000,Utilities   ,Utilities,Services to People,Brinnigton CC," 10,307.62 ",200510,12295
24/02/2023,ZZH719828,2,15472,Bryt Energy Ltd,370000,Utilities   ,Utilities,Services to People,Brinnigton CC," 3,813.89 ",200510,12295
27/02/2023,ZZH719855,1,15542,Cutthroat Jack's Hair Academy,261500,Human Resources Training & Conferences ,Fees and Charges,Services to Place,Contin Educ Service," 5,329.80 ",401024,10511
27/02/2023,ZZH719856,1,845,Dotted Eyes Ltd,270000,Information Communication Technology  ,Information and Communications Technology,Corporate and Support Services,Business Intelligenc," 12,955.00 ",402001,11872
27/02/2023,ZZH719868,1,15540,Absolute Care and Support (UK),320000,Social Community Care Supplies & Services  ,Care Payments,Services to People,Marple ECH," 250,000.00 ",530332,13050
28/02/2023,ZZH719907,1,544,Phoenix Software Ltd,270000,Information Communication Technology  ,Information and Communications Technology,Corporate and Support Services,IT Main," 7,498.16 ",402001,11073
28/02/2023,ZZH719952,1,5131,FUTURE DESIGN CONSULTANTS,150000,Consultancy   ,Professional Fees,Corporate and Support Services,One Stockport," 4,740.00 ",401007,13186
28/02/2023,ZZH719952,2,5131,FUTURE DESIGN CONSULTANTS,150000,Consultancy   ,Professional Fees,Corporate and Support Services,One Stockport," 3,440.00 ",401007,13186
01/03/2023,ZZH719998,1,13624,Charles Andrews Ltd,390000,"Works - Construction, Repair & Maintenance  ",Repairs and Maintenance,#N/A,#N/A," 62,157.50 ",200123,C.11021.001
01/03/2023,ZZH720017,1,10019,Access UK Ltd,270000,Information Communication Technology  ,Information and Communications Technology,Corporate and Support Services,Mangt Accounting," 27,300.00 ",402001,12872
01/03/2023,ZZH720017,2,10019,Access UK Ltd,270000,Information Communication Technology  ,Information and Communications Technology,Corporate and Support Services,Mangt Accounting," 2,000.00 ",402001,12872
01/03/2023,ZZH720017,3,10019,Access UK Ltd,270000,Information Communication Technology  ,Information and Communications Technology,Corporate and Support Services,Mangt Accounting," 1,250.00 ",402001,12872
01/03/2023,ZZH720017,4,10019,Access UK Ltd,270000,Information Communication Technology  ,Information and Communications Technology,Corporate and Support Services,Mangt Accounting," 9,000.00 ",402001,12872
01/03/2023,ZZH720017,5,10019,Access UK Ltd,270000,Information Communication Technology  ,Information and Communications Technology,Corporate and Support Services,Mangt Accounting," 1,800.00 ",402001,12872
02/03/2023,ZZH720021,1,3529,Totally Local Company Ltd,390000,"Works - Construction, Repair & Maintenance  ",Capital Expenditure - Works,#N/A,#N/A," 30,556.72 ",200304,C.01561.203
02/03/2023,ZZH720044,1,6748,GEORGE COX & SONS LTD,390000,Supplies and services,Supplies and services,#N/A,#N/A," 13,515.72 ",401600,C.01528.203
02/03/2023,ZZH720045,1,6748,GEORGE COX & SONS LTD,390000,Supplies and services,Supplies and services,#N/A,#N/A," 16,176.63 ",401600,C.01250.203
02/03/2023,ZZH720054,1,14853,PINC College,320000,Social Community Care Supplies & Services  ,Third party payments - Private/Voluntary Sector,Services to People,Top-up Fund Post 16," 56,428.00 ",402403,12724
02/03/2023,ZZH720065,1,8106,Tarmac Trading Ltd,390000,Supplies and services,Supplies and services,#N/A,#N/A," 44,478.01 ",401600,C.01565.203
02/03/2023,ZZH720066,1,3529,Totally Local Company Ltd,390000,"Works - Construction, Repair & Maintenance  ",Capital Expenditure - Works,#N/A,#N/A," 11,554.98 ",200304,C.01561.202
02/03/2023,ZZH720068,1,1104,Age UK Stockport,150000,Consultancy   ,Professional Fees,Services to People,PH-Physical Activity," 13,487.50 ",401020,12834
02/03/2023,ZZH720069,1,1816,Seashell Trust,150000,Consultancy   ,Professional Fees,Services to People,PH-Physical Activity," 22,207.15 ",401020,12834
02/03/2023,ZZH720070,1,15082,Stockport Active CIC,150000,Consultancy   ,Professional Fees,Services to People,PH-Physical Activity," 18,267.50 ",401020,12834
03/03/2023,ZZH720088,1,683,AECOM Limited,150000,Consultancy   ,Professional Fees,#N/A,#N/A," 20,122.00 ",401007,C.01221.203
03/03/2023,ZZH720119,1,2973,CIPFA,171113,Education Library Books ,Library Equipment,Corporate and Support Services,Mangt Accounting," 6,890.00 ",400202,12872
03/03/2023,ZZH720120,1,2973,CIPFA,200000,Financial Services  ,Fees and Charges,Corporate and Support Services,Mangt Accounting," 6,255.00 ",402401,12872
03/03/2023,ZZH720153,1,3529,Totally Local Company Ltd,390000,"Works - Construction, Repair & Maintenance  ",Capital Expenditure - Works,#N/A,#N/A," 23,028.76 ",200304,C.01479.203
03/03/2023,ZZH720163,1,15251,Ground Inc limited,240000,Horticultural  ,Grounds Maintenance,#N/A,#N/A," 11,299.40 ",202032,C.10775
03/03/2023,ZZH720164,1,15538,FJ Fabrication Limited,240000,Horticultural  ,Grounds Maintenance,#N/A,#N/A," 6,435.00 ",202032,C.10775
03/03/2023,ZZH720165,1,8233,MGB Plastics Ltd,182020,Environmental Services Waste Management,Waste Management Equipment,Services to Place,Wheelie Bins," 14,304.00 ",400401,10864
03/03/2023,ZZH720171,1,6748,GEORGE COX & SONS LTD,391114,"Works - Construction, Repair & Maintenance Buildings Surveys",Capital Expenditure - Fees,#N/A,#N/A," 12,978.26 ",200316,C.00468.203
03/03/2023,ZZH720178,1,6255,Building Software Ltd,391200,"Works - Construction, Repair & Maintenance Engineering ",Professional Fees,Services to Place,Invest in Growth," 18,550.00 ",401032,10091
06/03/2023,ZZH720197,1,1799,Stockport Homes,181800,Environmental Services Technical Equipment ,Furniture and Equipment,Services to People,Preventative Tech'Gy," 199,853.75 ",400110,11011
06/03/2023,ZZH720205,1,4272,Civica UK Ltd,270000,Information Communication Technology  ,Information and Communications Technology,Corporate and Support Services,Bentax," 103,933.10 ",402010,11139
06/03/2023,ZZH720211,1,1644,Tameside MBC,170000,Education  ,Third party payments - Public Sector,Services to People,OLA pupils," 1,841.00 ",500304,10371
06/03/2023,ZZH720211,2,1644,Tameside MBC,170000,Education  ,Third party payments - Public Sector,Services to People,OLA pupils," 19,131.00 ",500304,10371
06/03/2023,ZZH720211,3,1644,Tameside MBC,170000,Education  ,Third party payments - Public Sector,Services to People,OLA pupils," 11,479.00 ",500304,10371
06/03/2023,ZZH720211,4,1644,Tameside MBC,170000,Education  ,Third party payments - Public Sector,Services to People,OLA pupils," 14,348.00 ",500304,10371
06/03/2023,ZZH720211,5,1644,Tameside MBC,170000,Education  ,Third party payments - Public Sector,Services to People,OLA pupils," 4,010.00 ",500304,10371
06/03/2023,ZZH720211,6,1644,Tameside MBC,170000,Education  ,Third party payments - Public Sector,Services to People,OLA pupils," 6,014.00 ",500304,10371
06/03/2023,ZZH720211,7,1644,Tameside MBC,170000,Education  ,Third party payments - Public Sector,Services to People,OLA pupils," 2,761.00 ",500304,10371
06/03/2023,ZZH720211,8,1644,Tameside MBC,170000,Education  ,Third party payments - Public Sector,Services to People,OLA pupils," 7,618.84 ",500304,10371
06/03/2023,ZZH720211,9,1644,Tameside MBC,170000,Education  ,Third party payments - Public Sector,Services to People,OLA pupils," 2,636.00 ",500304,10371
06/03/2023,ZZH720213,1,7025,CBRE Limited,150000,Consultancy   ,Professional Fees,Services to Place,Merseyway Shop Ctre," 11,250.00 ",401020,12866
06/03/2023,ZZH720229,1,12234,Kids Planet Day Nurseries Limi,321115,Social Community Care Supplies & Services Children Childcare Services,Expenses and Allowances,Services to People,Early Years SEN," 6,246.50 ",402210,12942
07/03/2023,ZZH720259,1,6748,GEORGE COX & SONS LTD,390000,Supplies and services,Supplies and services,#N/A,#N/A," 36,321.67 ",401600,C.01565.203
07/03/2023,ZZH720286,1,15553,Miles Macadam Construction Ltd,390000,"Works - Construction, Repair & Maintenance  ",Capital Expenditure - Works,#N/A,#N/A," 42,866.52 ",200304,C.00614.203
07/03/2023,ZZH720286,2,15553,Miles Macadam Construction Ltd,390000,"Works - Construction, Repair & Maintenance  ",Capital Expenditure - Works,#N/A,#N/A," 22,922.38 ",200304,C.00614.203
07/03/2023,ZZH720288,1,6748,GEORGE COX & SONS LTD,390000,Supplies and services,Supplies and services,#N/A,#N/A," 10,422.91 ",401600,C.01594.203
07/03/2023,ZZH720296,1,364,Sutcliffe Play Ltd,240000,Horticultural  ,Grounds Maintenance,#N/A,#N/A," 6,136.00 ",202032,C.10775
07/03/2023,ZZH720317,1,6748,GEORGE COX & SONS LTD,390000,"Works - Construction, Repair & Maintenance  ",Capital Expenditure - Works,#N/A,#N/A," 29,882.47 ",200304,C.01194.203
07/03/2023,ZZH720325,1,1342,UK Container Maintenance Ltd,182020,Environmental Services Waste Management,Waste Management Equipment,Services to Place,Bulk Container," 1,421.00 ",400401,10883
07/03/2023,ZZH720325,2,1342,UK Container Maintenance Ltd,182020,Environmental Services Waste Management,Waste Management Equipment,Services to Place,Bulk Container, 501.00 ,400401,10883
07/03/2023,ZZH720325,3,1342,UK Container Maintenance Ltd,182020,Environmental Services Waste Management,Waste Management Equipment,Services to Place,Bulk Container," 1,015.00 ",400401,10883
07/03/2023,ZZH720325,4,1342,UK Container Maintenance Ltd,182020,Environmental Services Waste Management,Waste Management Equipment,Services to Place,Bulk Container," 1,218.00 ",400401,10883
07/03/2023,ZZH720325,5,1342,UK Container Maintenance Ltd,182020,Environmental Services Waste Management,Waste Management Equipment,Services to Place,Bulk Container, 835.00 ,400401,10883
07/03/2023,ZZH720325,6,1342,UK Container Maintenance Ltd,182020,Environmental Services Waste Management,Waste Management Equipment,Services to Place,Bulk Container, 378.00 ,400401,10883
07/03/2023,ZZH720331,1,9587,FFT Education Ltd,150000,Consultancy   ,Professional Fees,Corporate and Support Services,Business Intelligenc," 15,064.42 ",401020,11872
07/03/2023,ZZH720335,1,14973,Northern Care Alliance NHS FT,310000,Healthcare  ,Third party payments - Public Sector,Services to People,iBCF," 18,767.54 ",500402,13000
08/03/2023,ZZH720355,1,14932,Pager Power,150000,Consultancy   ,Professional Fees,#N/A,#N/A," 5,194.00 ",401020,C.10398.186
08/03/2023,ZZH720367,1,223,Groundwork Landscapes Ltd,240000,Horticultural  ,Grounds Maintenance,Services to Place,Play," 7,662.00 ",202032,11267
09/03/2023,ZZH720421,1,15595,Fulwood Roofing Services (Nort,390000,"Works - Construction, Repair & Maintenance  ",Repairs and Maintenance,#N/A,#N/A," 215,526.00 ",200123,C.10408.124
09/03/2023,ZZH720428,1,13205,Manchester Occupational Therap,150000,Consultancy   ,Professional Fees,Services to People,SEN Specific support," 5,954.09 ",401020,10300
09/03/2023,ZZH720456,1,8106,Tarmac Trading Ltd,390000,"Works - Construction, Repair & Maintenance  ",Capital Expenditure - Works,#N/A,#N/A," 28,166.01 ",200304,C.01561.202
09/03/2023,ZZH720471,1,8244,NCER CIC,150000,Consultancy   ,Professional Fees,Corporate and Support Services,Business Intelligenc," 12,400.25 ",401020,11872
09/03/2023,ZZH720473,1,7025,CBRE Limited,150000,Consultancy   ,Professional Fees,Services to Place,MDC Mayoral DC," 22,500.00 ",401007,13033
09/03/2023,ZZH720488,1,10346,STOCKPORT ADVOCACY,110000,Catering  ,Expenses and Allowances,Services to People,Heads of Service," 5,000.00 ",402202,11590
09/03/2023,ZZH720495,1,6748,GEORGE COX & SONS LTD,390000,Supplies and services,Supplies and services,#N/A,#N/A," 11,498.37 ",401600,C.00885.203
10/03/2023,ZZH720518,1,7650,Liquid Roofing Ltd,390000,"Works - Construction, Repair & Maintenance  ",Repairs and Maintenance,#N/A,#N/A," 79,743.84 ",200130,C.10523.193
10/03/2023,ZZH720524,1,11488,APT Training and Consultancy L,261500,Human Resources Training & Conferences ,Fees and Charges,Services to People,COMMA Project," 5,910.00 ",401024,13079
10/03/2023,ZZH720530,1,8236,STOCKPORT WITHOUT ABUSE,390000,Supplies and services,Supplies and services,Services to People,Domestic Abuse," 8,000.00 ",401600,12852
10/03/2023,ZZH720535,1,15579,StatMap Limited,270000,Information Communication Technology  ,Information and Communications Technology,Corporate and Support Services,Business Intelligenc," 17,700.00 ",402001,11872
10/03/2023,ZZH720551,1,219,Arboricultural Treeworks,240000,Horticultural  ,Grounds Maintenance,#N/A,#N/A," 15,000.00 ",202032,C.10775
10/03/2023,ZZH720554,1,1644,Tameside MBC,150000,Consultancy   ,Professional Fees,Services to People,PH-Programme Mngmt," 17,522.00 ",401020,12732
10/03/2023,ZZH720561,1,5276,ESE Ltd,182020,Environmental Services Waste Management,Waste Management Equipment,Services to Place,Wheelie Bins," 7,254.00 ",400401,10864
10/03/2023,ZZH720561,2,5276,ESE Ltd,182020,Environmental Services Waste Management,Waste Management Equipment,Services to Place,Wheelie Bins," 7,945.00 ",400401,10864
10/03/2023,ZZH720567,1,15580,Career Evolution Limited,150000,Consultancy   ,Professional Fees,Corporate and Support Services,Chief Execs Office," 5,000.00 ",401007,11112
13/03/2023,ZZH720581,1,11715,CBRE,320000,Social Community Care Supplies & Services  ,Third party payments - Private/Voluntary Sector,#N/A,#N/A," 100,000.00 ",402403,C.11511
13/03/2023,ZZH720594,1,4585,Knight Kavanagh + Page Ltd,210000,Furniture & Soft Furnishings  ,Furniture and Equipment,Services to Place,Sports Client," 23,250.00 ",400115,11309
13/03/2023,ZZH720595,1,6748,GEORGE COX & SONS LTD,390000,Supplies and services,Supplies and services,#N/A,#N/A," 377,967.45 ",401600,C.01179.203
13/03/2023,ZZH720601,1,11955,ROSSENDALE SCHOOL,261500,Human Resources Training & Conferences ,Fees and Charges,Services to People,SEN Independent Sch," 23,910.12 ",401024,10372
13/03/2023,ZZH720610,1,13860,Howard Lynn Property Ltd,261400,Human Resources Temporary & Agency Staff ,Agency Staff,Services to Place,Property Client Acct," 5,051.21 ",100290,12328
13/03/2023,ZZH720624,1,14666,Reflex Systems Limited,210000,Furniture & Soft Furnishings  ,Furniture and Equipment,Services to People,Safer Streets," 8,107.97 ",400115,13194
13/03/2023,ZZH720625,1,6342,GREATER MANCHESTER POLICE AUTH,181800,Environmental Services Technical Equipment ,Furniture and Equipment,Services to People,Safer Streets," 10,000.00 ",400110,13194
13/03/2023,ZZH720643,1,6116,Atkins Limited,150000,Consultancy   ,Professional Fees,Services to Place,Feasibility," 9,040.00 ",401020,13062
14/03/2023,ZZH720653,1,15602,Blakedown Sport & Play Limited,240000,Horticultural  ,Grounds Maintenance,#N/A,#N/A," 84,366.70 ",202032,C.10775
14/03/2023,ZZH720654,1,15602,Blakedown Sport & Play Limited,240000,Horticultural  ,Grounds Maintenance,#N/A,#N/A," 27,838.61 ",202032,C.10775
14/03/2023,ZZH720678,1,4585,Knight Kavanagh + Page Ltd,210000,Furniture & Soft Furnishings  ,Furniture and Equipment,Services to Place,Sports Client," 5,850.00 ",400115,11309
14/03/2023,ZZH720680,1,15091,The Innovation Unit,390000,Supplies and services,Supplies and services,Services to People,Regional Imp Allianc," 100,000.00 ",401600,13031
14/03/2023,ZZH720696,1,1339,Stockport NHS Foundation Trust,310000,Healthcare  ,Third party payments - Public Sector,Services to People,CADA grant," 60,200.00 ",500402,13032
14/03/2023,ZZH720699,1,1339,Stockport NHS Foundation Trust,310000,Healthcare  ,Third party payments - Public Sector,Services to People,SF Senior Management," 85,300.00 ",500402,11486
14/03/2023,ZZH720700,1,1339,Stockport NHS Foundation Trust,310000,Healthcare  ,Third party payments - Public Sector,Services to People,EHP TP Commissioning," 30,000.00 ",500402,11740
14/03/2023,ZZH720701,1,1339,Stockport NHS Foundation Trust,310000,Healthcare  ,Third party payments - Public Sector,Services to People,COMMA Project," 47,900.00 ",500402,13079
14/03/2023,ZZH720703,1,1339,Stockport NHS Foundation Trust,999999,Fees and Charges,Fees and Charges,Services to People,EHP Early Interventn," 106,837.00 ",402404,12600
14/03/2023,ZZH720704,1,3529,Totally Local Company Ltd,390000,Supplies and services,Supplies and services,#N/A,#N/A," 121,532.79 ",401600,C.01572.203
14/03/2023,ZZH720705,1,5214,WSP GROUP PLC,150000,Consultancy   ,Professional Fees,#N/A,#N/A," 13,735.50 ",401007,C.01577.202
14/03/2023,ZZH720707,1,14253,South London and Maudsley NHS,290000,Arts & Leisure Services  ,Publicity and Promotion,Services to People,EPEC Programme," 20,000.00 ",401801,13037
14/03/2023,ZZH720708,1,1339,Stockport NHS Foundation Trust,310000,Healthcare  ,Third party payments - Public Sector,Services to People,EHP Children Ctrs Ce," 206,000.00 ",500401,10122
14/03/2023,ZZH720709,1,15091,The Innovation Unit,290000,Arts & Leisure Services  ,Publicity and Promotion,Services to People,EPEC Programme," 6,135.00 ",401801,13037
14/03/2023,ZZH720718,1,7166,THE DARTINGTON HALL TRUST,150000,Consultancy   ,Professional Fees,Services to People,WD-Staff Dev-Grants," 10,782.00 ",401020,12202
14/03/2023,ZZH720739,1,1339,Stockport NHS Foundation Trust,310000,Healthcare  ,Third party payments - Public Sector,Services to People,Yth Justice EarlyInt," 9,300.00 ",500402,11787
15/03/2023,ZZH720747,1,10337,SIGNPOST STOCKPORT for CARERS,320000,Social Community Care Supplies & Services  ,Third party payments - Private/Voluntary Sector,Corporate and Support Services,Benefit & Debt Advce," 5,000.00 ",402403,11322
15/03/2023,ZZH720761,1,6170,Greater Manchester TreeStation,390000,Supplies and services,Supplies and services,Services to Place,Land Proj-Chadkirk," 6,380.00 ",401600,11225
15/03/2023,ZZH720762,1,5915,Atkins Global Limited,150000,Consultancy   ,Professional Fees,Services to Place,Chargeable work," 46,645.00 ",401007,13013
15/03/2023,ZZH720763,1,9894,TLT LLP,390000,Supplies and services,Supplies and services,#N/A,#N/A," 140,000.00 ",401600,C.00845.203
15/03/2023,ZZH720772,1,5535,Elementary Technology Ltd,270000,Information Communication Technology  ,Information and Communications Technology,#N/A,#N/A," 12,950.00 ",402001,C.10423.184
15/03/2023,ZZH720772,2,5535,Elementary Technology Ltd,270000,Information Communication Technology  ,Information and Communications Technology,#N/A,#N/A," 1,365.00 ",402001,C.10423.184
15/03/2023,ZZH720772,3,5535,Elementary Technology Ltd,270000,Information Communication Technology  ,Information and Communications Technology,#N/A,#N/A, 875.00 ,402001,C.10423.184
15/03/2023,ZZH720772,4,5535,Elementary Technology Ltd,270000,Information Communication Technology  ,Information and Communications Technology,#N/A,#N/A," 1,575.00 ",402001,C.10423.184
15/03/2023,ZZH720772,5,5535,Elementary Technology Ltd,270000,Information Communication Technology  ,Information and Communications Technology,#N/A,#N/A, 595.00 ,402001,C.10423.184
15/03/2023,ZZH720772,6,5535,Elementary Technology Ltd,270000,Information Communication Technology  ,Information and Communications Technology,#N/A,#N/A, 483.00 ,402001,C.10423.184
15/03/2023,ZZH720772,7,5535,Elementary Technology Ltd,270000,Information Communication Technology  ,Information and Communications Technology,#N/A,#N/A, 900.00 ,402001,C.10423.184
16/03/2023,ZZH720805,1,15602,Blakedown Sport & Play Limited,240000,Horticultural  ,Grounds Maintenance,#N/A,#N/A," 275,958.93 ",202032,C.10775
17/03/2023,ZZH720836,1,8236,STOCKPORT WITHOUT ABUSE,390000,Supplies and services,Supplies and services,Services to People,Domestic Abuse Bill," 33,000.00 ",401600,13111
17/03/2023,ZZH720847,1,15542,Cutthroat Jack's Hair Academy,261500,Human Resources Training & Conferences ,Fees and Charges,Services to Place,Contin Educ Service," 6,721.00 ",401024,10511
17/03/2023,ZZH720849,1,6748,GEORGE COX & SONS LTD,390000,Supplies and services,Supplies and services,#N/A,#N/A," 7,606.34 ",401600,C.01526.203
17/03/2023,ZZH720862,1,8565,STOCKPORT & DISTRICT MIND,150000,Consultancy   ,Professional Fees,Services to People,PH-Programme Mngmt," 9,209.00 ",401020,12732
17/03/2023,ZZH720862,2,8565,STOCKPORT & DISTRICT MIND,150000,Consultancy   ,Professional Fees,Services to People,PH-Programme Mngmt," 9,208.00 ",401020,12732
20/03/2023,ZZH720888,1,1382,Pure Innovations Ltd,320000,Social Community Care Supplies & Services  ,Third party payments - Private/Voluntary Sector,Corporate and Support Services,Com. Invest Fund," 2,500.00 ",402403,12979
20/03/2023,ZZH720888,2,1382,Pure Innovations Ltd,320000,Social Community Care Supplies & Services  ,Third party payments - Private/Voluntary Sector,Corporate and Support Services,Com. Invest Fund," 2,500.00 ",402403,12979
20/03/2023,ZZH720888,3,1382,Pure Innovations Ltd,320000,Social Community Care Supplies & Services  ,Third party payments - Private/Voluntary Sector,Corporate and Support Services,Com. Invest Fund," 2,500.00 ",402403,12979
20/03/2023,ZZH720888,4,1382,Pure Innovations Ltd,320000,Social Community Care Supplies & Services  ,Third party payments - Private/Voluntary Sector,Corporate and Support Services,Com. Invest Fund," 2,500.00 ",402403,12979
20/03/2023,ZZH720888,5,1382,Pure Innovations Ltd,320000,Social Community Care Supplies & Services  ,Third party payments - Private/Voluntary Sector,Corporate and Support Services,Com. Invest Fund, 900.00 ,402403,12979
20/03/2023,ZZH720888,6,1382,Pure Innovations Ltd,320000,Social Community Care Supplies & Services  ,Third party payments - Private/Voluntary Sector,Corporate and Support Services,Com. Invest Fund," 1,000.00 ",402403,12979
20/03/2023,ZZH720893,1,11528,SafeLives,261500,Human Resources Training & Conferences ,Fees and Charges,Services to People,MOS - Mosaic Mngmnt," 8,400.00 ",401024,11430
20/03/2023,ZZH720904,1,2794,Show Racism the Red Card,261500,Human Resources Training & Conferences ,Fees and Charges,Services to People,SG - Child Prot-Lscb," 6,120.00 ",401024,11424
20/03/2023,ZZH720911,1,15618,Ryder Architecture,390000,"Works - Construction, Repair & Maintenance  ",Repairs and Maintenance,#N/A,#N/A," 160,880.00 ",200123,C.11021.001
20/03/2023,ZZH720914,1,15590,Print Image Facilities LLP,210000,Furniture & Soft Furnishings  ,Furniture and Equipment,Corporate and Support Services,Local Election," 9,889.00 ",400105,12102
20/03/2023,ZZH720914,2,15590,Print Image Facilities LLP,210000,Furniture & Soft Furnishings  ,Furniture and Equipment,Corporate and Support Services,Local Election, 659.00 ,400105,12102
20/03/2023,ZZH720914,3,15590,Print Image Facilities LLP,210000,Furniture & Soft Furnishings  ,Furniture and Equipment,Corporate and Support Services,Local Election, 1.00 ,400105,12102
20/03/2023,ZZH720920,1,5800,Northern Trains Limited,181800,Environmental Services Technical Equipment ,Furniture and Equipment,Services to Place,South M/cr RP," 15,222.53 ",400110,10890
20/03/2023,ZZH720921,1,3292,Reach Publishing Services Ltd,190000,Facilities & Management Services  ,Publicity and Promotion,Services to Place,Network Management," 20,000.00 ",401800,13179
20/03/2023,ZZH720925,1,15615,Northumberland County Council,381600,Vehicle Management Leasing ,Leasing /Transport Hire,#N/A,#N/A," 21,500.00 ",300401,C.10425.245
20/03/2023,ZZH720936,1,1583,Tunstall Healthcare (UK) Ltd,210000,Furniture & Soft Furnishings  ,Furniture and Equipment,#N/A,#N/A," 3,120.00 ",400105,C.10004.001
20/03/2023,ZZH720936,2,1583,Tunstall Healthcare (UK) Ltd,210000,Furniture & Soft Furnishings  ,Furniture and Equipment,#N/A,#N/A," 2,340.00 ",400105,C.10004.001
20/03/2023,ZZH720936,3,1583,Tunstall Healthcare (UK) Ltd,210000,Furniture & Soft Furnishings  ,Furniture and Equipment,#N/A,#N/A, 848.60 ,400105,C.10004.001
20/03/2023,ZZH720936,4,1583,Tunstall Healthcare (UK) Ltd,210000,Furniture & Soft Furnishings  ,Furniture and Equipment,#N/A,#N/A, 364.00 ,400105,C.10004.001
20/03/2023,ZZH720936,5,1583,Tunstall Healthcare (UK) Ltd,210000,Furniture & Soft Furnishings  ,Furniture and Equipment,#N/A,#N/A," 1,134.90 ",400105,C.10004.001
20/03/2023,ZZH720941,1,13551,Permanent Futures Ltd,270000,Information Communication Technology  ,Information and Communications Technology,Corporate and Support Services,I.T Business Relat," 14,000.00 ",402004,13044
21/03/2023,ZZH720964,1,14078,DV TwentyThree Aps,270000,Information Communication Technology  ,Information and Communications Technology,Corporate and Support Services,IT Systems," 11,988.00 ",402001,12503
21/03/2023,ZZH720976,1,2438,J Greenwood (Builders) Ltd,390000,"Works - Construction, Repair & Maintenance  ",Repairs and Maintenance,#N/A,#N/A," 17,437.00 ",200123,C.11502.094
21/03/2023,ZZH720983,1,8423,SMS Coaching Limited,261500,Human Resources Training & Conferences ,Fees and Charges,Services to People,SEN Independent Sch," 5,040.00 ",401024,10372
21/03/2023,ZZH721003,1,10609,Bendcrete Leisure,240000,Horticultural  ,Grounds Maintenance,#N/A,#N/A," 6,500.00 ",202032,C.10775
21/03/2023,ZZH721009,1,14535,University Hospitals Birmingha,171113,Education Library Books ,Library Equipment,Services to People,CADA grant, 135.00 ,400202,13032
21/03/2023,ZZH721009,2,14535,University Hospitals Birmingha,171113,Education Library Books ,Library Equipment,Services to People,CADA grant, 132.00 ,400202,13032
21/03/2023,ZZH721009,3,14535,University Hospitals Birmingha,171113,Education Library Books ,Library Equipment,Services to People,CADA grant," 8,768.00 ",400202,13032
21/03/2023,ZZH721010,1,1342,UK Container Maintenance Ltd,182020,Environmental Services Waste Management,Waste Management Equipment,Services to Place,Bulk Container," 4,095.00 ",400401,10883
21/03/2023,ZZH721010,2,1342,UK Container Maintenance Ltd,182020,Environmental Services Waste Management,Waste Management Equipment,Services to Place,Bulk Container," 4,095.00 ",400401,10883
21/03/2023,ZZH721016,1,15616,CorEnergy Limited,390000,"Works - Construction, Repair & Maintenance  ",Capital Expenditure - Works,#N/A,#N/A," 274,608.38 ",200304,C.10962.002
21/03/2023,ZZH721018,1,6189,CACI SoftSmart Ltd,270000,Information Communication Technology  ,Information and Communications Technology,Services to People,Turnaround Programme," 5,600.00 ",402001,13202
21/03/2023,ZZH721033,1,6748,GEORGE COX & SONS LTD,390000,Supplies and services,Supplies and services,Services to Place,Highway Structs R+R," 26,447.62 ",401600,11975
21/03/2023,ZZH721039,1,1535,Education Software Solutions,270000,Information Communication Technology  ,Information and Communications Technology,Corporate and Support Services,IT SIMS," 14,175.00 ",402010,10422
21/03/2023,ZZH721041,1,902,Bikeright,261500,Human Resources Training & Conferences ,Fees and Charges,Services to Place,Highways-Cycle Train," 92,190.00 ",401024,11962
22/03/2023,ZZH721045,1,35,CBC Computer Systems Ltd,270000,Information Communication Technology  ,Information and Communications Technology,Corporate and Support Services,Audit & Risk," 6,545.00 ",402001,12874
22/03/2023,ZZH721049,1,9715,NHS GREATER MANCHESTER INTEGRA,260000,Human Resources  ,Other Payments,Services to People,Proactive Care," 261,884.00 ",100304,12829
22/03/2023,ZZH721056,1,15623,Survey Solutions,390000,"Works - Construction, Repair & Maintenance  ",Repairs and Maintenance,#N/A,#N/A," 3,250.00 ",200123,C.11021.001
22/03/2023,ZZH721056,2,15623,Survey Solutions,390000,"Works - Construction, Repair & Maintenance  ",Repairs and Maintenance,#N/A,#N/A," 2,950.00 ",200123,C.11021.001
22/03/2023,ZZH721056,3,15623,Survey Solutions,390000,"Works - Construction, Repair & Maintenance  ",Repairs and Maintenance,#N/A,#N/A, 950.00 ,200123,C.11021.001
22/03/2023,ZZH721073,1,3763,IDOX Software Ltd,270000,Information Communication Technology  ,Information and Communications Technology,Services to Place,Planning," 48,662.00 ",402001,12150
22/03/2023,ZZH721074,1,3763,IDOX Software Ltd,270000,Information Communication Technology  ,Information and Communications Technology,Services to Place,Planning," 6,550.00 ",402001,12150
23/03/2023,ZZH721115,1,8233,MGB Plastics Ltd,182020,Environmental Services Waste Management,Waste Management Equipment,Services to Place,Wheelie Bins," 15,456.00 ",400401,10864
23/03/2023,ZZH721157,1,14317,Ridge and Partners LLP,150000,Consultancy   ,Professional Fees,Services to Place,MS Design Frnwk Staf," 59,766.56 ",401020,13107
23/03/2023,ZZH721158,1,14317,Ridge and Partners LLP,150000,Consultancy   ,Professional Fees,Services to Place,MS Design Frnwk Staf," 99,371.68 ",401020,13107
23/03/2023,ZZH721166,1,4190,Derbyshire County Council,381600,Vehicle Management Hire/Leasing ,Leasing /Transport Hire,Services to People,SEN Trans-Home to Sc," 34,390.00 ",300302,10373
23/03/2023,ZZH721172,1,6748,GEORGE COX & SONS LTD,390000,Supplies and services,Supplies and services,#N/A,#N/A," 76,015.60 ",401600,C.01179.203
23/03/2023,ZZH721179,1,1339,Stockport NHS Foundation Trust,310000,Healthcare  ,Third party payments - Public Sector,Services to People,Yth Justice EarlyInt," 22,265.00 ",500402,11787
24/03/2023,ZZH721201,1,35,CBC Computer Systems Ltd,270000,Information Communication Technology  ,Information and Communications Technology,Services to Place,Planning," 6,850.00 ",402001,12150
27/03/2023,ZZH721241,1,35,CBC Computer Systems Ltd,270000,Information Communication Technology  ,Information and Communications Technology,Corporate and Support Services,Bentax," 8,925.00 ",402001,11139
27/03/2023,ZZH721241,2,35,CBC Computer Systems Ltd,270000,Information Communication Technology  ,Information and Communications Technology,Corporate and Support Services,Bentax," 2,025.00 ",402001,11139
27/03/2023,ZZH721243,1,10897,Three Sixty SHG Ltd,390000,"Works - Construction, Repair & Maintenance  ",Repairs and Maintenance,Services to Place,Property Client Acct," 43,209.02 ",200123,11137
27/03/2023,ZZH721300,1,683,AECOM Limited,390000,Supplies and services,Supplies and services,#N/A,#N/A," 6,346.06 ",401600,C.00718.203
27/03/2023,ZZH721304,1,6748,GEORGE COX & SONS LTD,390000,Supplies and services,Supplies and services,#N/A,#N/A," 18,130.38 ",401600,C.10427.109
27/03/2023,ZZH721305,1,3292,Reach Publishing Services Ltd,190000,Facilities & Management Services  ,Publicity and Promotion,Services to Place,Rechargeable work, -   ,401800,11961
27/03/2023,ZZH721305,1,3292,Reach Publishing Services Ltd,190000,Facilities & Management Services  ,Publicity and Promotion,Services to Place,Network Management," 20,000.00 ",401800,13179
27/03/2023,ZZH721311,1,14898,Penna PLC,150000,Consultancy   ,Professional Fees,Corporate and Support Services,Chief Execs Office," 118,916.00 ",401020,11112
27/03/2023,ZZH721314,1,7025,CBRE Limited,150000,Consultancy   ,Professional Fees,Services to Place,MDC Mayoral DC," 30,000.00 ",401007,13033
28/03/2023,ZZH721337,1,15629,Connell Brothers Ltd,390000,"Works - Construction, Repair & Maintenance  ",Repairs and Maintenance,#N/A,#N/A," 116,595.00 ",200123,C.11518
28/03/2023,ZZH721345,1,2522,Donald Insall Associates,390000,"Works - Construction, Repair & Maintenance  ",Repairs and Maintenance,Services to Place,Property Client Acct," 9,950.00 ",200123,11137
29/03/2023,ZZH721401,1,8730,Counting Solutions Ltd,181800,Environmental Services Technical Equipment ,Furniture and Equipment,Services to Place,Town Centre Devt Tea," 14,000.00 ",400110,10072
29/03/2023,ZZH721406,1,433,Mott MacDonald Ltd,150000,Consultancy   ,Professional Fees,Services to Place,MS Design Frnwk Staf," 36,864.00 ",401020,13107
29/03/2023,ZZH721407,1,433,Mott MacDonald Ltd,150000,Consultancy   ,Professional Fees,Services to Place,MS Design Frnwk Staf," 99,200.00 ",401020,13107
29/03/2023,ZZH721419,1,3421,Symetri Ltd,270000,Information Communication Technology  ,Information and Communications Technology,Services to Place,D & I Team," 65,275.00 ",402010,11960
29/03/2023,ZZH721423,1,6967,Wilde Consultants Ltd,150000,Consultancy   ,Professional Fees,#N/A,#N/A," 13,500.00 ",401007,C.01250.201
29/03/2023,ZZH721424,1,6967,Wilde Consultants Ltd,150000,Consultancy   ,Professional Fees,#N/A,#N/A," 8,039.80 ",401007,C.01166.201
30/03/2023,ZZH721447,1,12265,Lancasterian School,170000,Education  ,Third party payments - Public Sector,Services to People,OLA pupils," 49,128.00 ",500304,10371
30/03/2023,ZZH721447,2,12265,Lancasterian School,170000,Education  ,Third party payments - Public Sector,Services to People,OLA pupils," 9,965.00 ",500304,10371
30/03/2023,ZZH721447,3,12265,Lancasterian School,170000,Education  ,Third party payments - Public Sector,Services to People,OLA pupils," 9,965.00 ",500304,10371
30/03/2023,ZZH721452,1,10753,APS GROUP,191600,Facilities & Management Services Printing ,Printing and Photocopying,Corporate and Support Services,Driver Assessment," 15,000.00 ",400800,11113
30/03/2023,ZZH721458,1,13125,18 St John Street Chambers,150000,Consultancy   ,Professional Fees,Corporate and Support Services,Legal Fees Budget," 5,930.00 ",401020,12271
30/03/2023,ZZH721495,1,10402,Brabners LLP,280000,Legal Services  ,Legal Fees,Corporate and Support Services,Legal Fees Budget," 5,000.00 ",401016,12271
30/03/2023,ZZH721511,1,1382,Pure Innovations Ltd,320000,Social Community Care Supplies & Services  ,Third party payments - Private/Voluntary Sector,Corporate and Support Services,Com. Invest Fund," 1,250.00 ",402403,12979
30/03/2023,ZZH721511,2,1382,Pure Innovations Ltd,320000,Social Community Care Supplies & Services  ,Third party payments - Private/Voluntary Sector,Corporate and Support Services,Com. Invest Fund," 1,250.00 ",402403,12979
30/03/2023,ZZH721511,3,1382,Pure Innovations Ltd,320000,Social Community Care Supplies & Services  ,Third party payments - Private/Voluntary Sector,Corporate and Support Services,Com. Invest Fund," 1,250.00 ",402403,12979
30/03/2023,ZZH721511,4,1382,Pure Innovations Ltd,320000,Social Community Care Supplies & Services  ,Third party payments - Private/Voluntary Sector,Corporate and Support Services,Com. Invest Fund," 1,250.00 ",402403,12979
30/03/2023,ZZH721511,5,1382,Pure Innovations Ltd,320000,Social Community Care Supplies & Services  ,Third party payments - Private/Voluntary Sector,Corporate and Support Services,Com. Invest Fund, 900.00 ,402403,12979
30/03/2023,ZZH721511,6,1382,Pure Innovations Ltd,320000,Social Community Care Supplies & Services  ,Third party payments - Private/Voluntary Sector,Corporate and Support Services,Com. Invest Fund," 1,000.00 ",402403,12979
30/03/2023,ZZH721512,1,1382,Pure Innovations Ltd,320000,Social Community Care Supplies & Services  ,Third party payments - Private/Voluntary Sector,Corporate and Support Services,Com. Invest Fund," 1,750.00 ",402403,12979
30/03/2023,ZZH721512,2,1382,Pure Innovations Ltd,320000,Social Community Care Supplies & Services  ,Third party payments - Private/Voluntary Sector,Corporate and Support Services,Com. Invest Fund," 1,750.00 ",402403,12979
30/03/2023,ZZH721512,3,1382,Pure Innovations Ltd,320000,Social Community Care Supplies & Services  ,Third party payments - Private/Voluntary Sector,Corporate and Support Services,Com. Invest Fund," 1,750.00 ",402403,12979
30/03/2023,ZZH721512,4,1382,Pure Innovations Ltd,320000,Social Community Care Supplies & Services  ,Third party payments - Private/Voluntary Sector,Corporate and Support Services,Com. Invest Fund," 1,750.00 ",402403,12979
30/03/2023,ZZH721512,5,1382,Pure Innovations Ltd,320000,Social Community Care Supplies & Services  ,Third party payments - Private/Voluntary Sector,Corporate and Support Services,Com. Invest Fund, 900.00 ,402403,12979
30/03/2023,ZZH721512,6,1382,Pure Innovations Ltd,320000,Social Community Care Supplies & Services  ,Third party payments - Private/Voluntary Sector,Corporate and Support Services,Com. Invest Fund," 1,000.00 ",402403,12979
30/03/2023,ZZH721513,1,1382,Pure Innovations Ltd,320000,Social Community Care Supplies & Services  ,Third party payments - Private/Voluntary Sector,Corporate and Support Services,Com. Invest Fund," 2,500.00 ",402403,12979
30/03/2023,ZZH721513,2,1382,Pure Innovations Ltd,320000,Social Community Care Supplies & Services  ,Third party payments - Private/Voluntary Sector,Corporate and Support Services,Com. Invest Fund," 2,500.00 ",402403,12979
30/03/2023,ZZH721513,3,1382,Pure Innovations Ltd,320000,Social Community Care Supplies & Services  ,Third party payments - Private/Voluntary Sector,Corporate and Support Services,Com. Invest Fund," 2,500.00 ",402403,12979
30/03/2023,ZZH721513,4,1382,Pure Innovations Ltd,320000,Social Community Care Supplies & Services  ,Third party payments - Private/Voluntary Sector,Corporate and Support Services,Com. Invest Fund," 2,500.00 ",402403,12979
30/03/2023,ZZH721513,5,1382,Pure Innovations Ltd,320000,Social Community Care Supplies & Services  ,Third party payments - Private/Voluntary Sector,Corporate and Support Services,Com. Invest Fund, 900.00 ,402403,12979
30/03/2023,ZZH721513,6,1382,Pure Innovations Ltd,320000,Social Community Care Supplies & Services  ,Third party payments - Private/Voluntary Sector,Corporate and Support Services,Com. Invest Fund," 1,000.00 ",402403,12979
30/03/2023,ZZH721521,1,10346,STOCKPORT ADVOCACY,150000,Consultancy   ,Professional Fees,Services to People,Advocacy," 395,299.82 ",401020,12853
31/03/2023,ZZH721533,1,10798,Cludo UK Ltd,270000,Information Communication Technology  ,Information and Communications Technology,Corporate and Support Services,IT Systems," 7,625.00 ",402001,12503
31/03/2023,ZZH721534,1,6857,SITEIMPROVE LTD,270000,Information Communication Technology  ,Information and Communications Technology,Corporate and Support Services,IT Systems," 11,153.00 ",402001,12503
31/03/2023,ZZH721537,1,1694,Network Rail Infras'ture Ltd,390000,Supplies and services,Supplies and services,#N/A,#N/A," 60,748.00 ",401600,C.01278.203
31/03/2023,ZZH721542,1,15378,Tile Hill Interim & Executive,261300,Human Resources Recruitment & Assessment ,Advertising,Services to Place,Operational Support," 17,160.00 ",102040,10924
31/03/2023,ZZH721555,1,13974,ADDLESHAW GODDARD,280000,Legal Services  ,Legal Fees,#N/A,#N/A," 42,782.46 ",401016,C.10976
31/03/2023,ZZH721560,1,757,Transport for Greater Manchest,170000,Education  ,Welfare Payments,Services to People,SS-FreeSclTrans-Pri," 2,395.90 ",530102,10429
31/03/2023,ZZH721560,2,757,Transport for Greater Manchest,170000,Education  ,Welfare Payments,Services to People,SS-FreeSclTrans-Sec," 126,226.10 ",530102,10430
31/03/2023,ZZH721561,1,757,Transport for Greater Manchest,170000,Education  ,Welfare Payments,Services to People,SS-FreeSclTrans-Pri," 2,945.80 ",530102,10429
31/03/2023,ZZH721561,2,757,Transport for Greater Manchest,170000,Education  ,Welfare Payments,Services to People,SS-FreeSclTrans-Pri," 138,586.50 ",530102,10429
31/03/2023,ZZH721578,1,1243,The Manchester College (MANCAT,320000,Social Community Care Supplies & Services  ,Third party payments - Private/Voluntary Sector,Services to People,Top-up Fund Post 16," 348,152.79 ",402403,12724
31/03/2023,ZZH721579,1,242,The Trafford College Group TCG,320000,Social Community Care Supplies & Services  ,Third party payments - Private/Voluntary Sector,Services to People,Top-up Fund Post 16," 646,994.44 ",402403,12724
31/03/2023,ZZH721590,1,9715,NHS GREATER MANCHESTER INTEGRA,260000,Human Resources  ,Other Payments,Services to People,Proactive Care," 541,217.00 ",100304,12829
31/03/2023,ZZH721594,1,15108,Computer Futures,270000,Information Communication Technology  ,Information and Communications Technology,Corporate and Support Services,Business Intelligenc," 23,040.00 ",402004,11872
31/03/2023,ZZH721600,1,9439,AAT (GB) Ltd,390000,"Works - Construction, Repair & Maintenance  ",Capital Expenditure - Works,#N/A,#N/A," 7,538.00 ",200301,C.10004.001
31/03/2023,ZZH721600,2,9439,AAT (GB) Ltd,390000,"Works - Construction, Repair & Maintenance  ",Capital Expenditure - Works,#N/A,#N/A, 550.00 ,200301,C.10004.001
31/03/2023,ZZH721601,1,944,"Prism Medical UK, Westholm Div",390000,"Works - Construction, Repair & Maintenance  ",Capital Expenditure - Works,#N/A,#N/A," 5,000.00 ",200301,C.10004.001
31/03/2023,ZZH721605,1,10346,STOCKPORT ADVOCACY,150000,Consultancy   ,Professional Fees,Services to People,Advocacy," 395,299.82 ",401020,12853
31/03/2023,ZZH721621,1,6116,Atkins Limited,150000,Consultancy   ,Professional Fees,Services to Place,Feasibility," 31,466.24 ",401020,13062
31/03/2023,ZZH721622,1,6116,Atkins Limited,150000,Consultancy   ,Professional Fees,Services to Place,Feasibility," 27,418.56 ",401020,13062
31/03/2023,ZZH721623,1,6116,Atkins Limited,150000,Consultancy   ,Professional Fees,Services to Place,Feasibility," 58,760.00 ",401020,13062
31/03/2023,ZZH721624,1,6116,Atkins Limited,150000,Consultancy   ,Professional Fees,Services to Place,Feasibility," 39,332.80 ",401020,13062
31/03/2023,ZZH721625,1,683,AECOM Limited,150000,Consultancy   ,Professional Fees,Services to Place,Feasibility," 41,974.40 ",401020,13062
31/03/2023,ZZH721626,1,6116,Atkins Limited,150000,Consultancy   ,Professional Fees,Services to Place,Feasibility," 45,697.60 ",401020,13062
31/03/2023,ZZH721627,1,6116,Atkins Limited,150000,Consultancy   ,Professional Fees,Services to Place,Feasibility," 47,008.00 ",401020,13062
31/03/2023,ZZS721556,1,4272,Civica UK Ltd,270000,Information Communication Technology  ,Information and Communications Technology,Corporate and Support Services,U-Coroners Ct-Genera," 15,840.00 ",402001,10965
,,,,,,,,,," 20,665,647.24 ",,
